{"text_format":"1","workbook":"xlsx","n_sheets":5,"sheets":["Instrucciones","INICIO","AGENDA","PESO","AUXILIAR"],"not_rendered":{"charts":1,"images":5,"macros":1,"external_links":0,"defined_names":14,"comments":0,"pivot_tables":0},"unopened":[],"bounds":{"document_bytes":16777216,"sheet_cells":100000,"rows_first":2000,"rows_last":500,"rows_between":2000,"halvings":0,"cell_chars":16384,"cell_head_chars":4096},"cells_cut":0,"cells_raw":0,"read":"whole","date_system":"1900"}

{"sheet":"Instrucciones","index":0,"n_rows":23,"n_cols":3,"rows_kept":23,"cut":false,"hidden":false,"merged":[[8,1,8,7],[20,1,20,7],[1,1,2,6],[22,0,22,7],[5,1,5,7],[6,1,6,7],[7,1,7,7],[10,1,10,7],[11,1,11,7],[12,1,12,7],[15,1,15,7],[16,1,16,7],[18,1,18,7]]}
[]
[null,"VIVIR LA MATERNIDAD"]
[]
[]
["INICIO"]
[null,"En la pestaña INICIO debes indicar la fecha del primer día de la última regla"]
[null,"La hoja calculará automáticamente la fecha probable de parto, los días que faltan"]
[null,"para ver al bebé y las semanas de embarazo"]
[null,"Esta fecha es importante para poner en funcionamiento la agenda"]
["AGENDA"]
[null,"En la pestaña AGENDA puedes ir apuntando anotaciones y el peso durante el embarazo"]
[null,"Los días que contengan anotaciones aparecerán en verde"]
[null,"Los días rosas contienen consejos de Vivir la Maternidad"]
[null,null,"Días con anotaciones"]
[null,null,"Días con consejos"]
[null,"Para guardar una anotación o el peso en un día, seleccione el día en el calendario"]
[null,"escriba la anotación y el peso, y después, pulse el botón GUARDAR"]
["PESO"]
[null,"En esta hoja se va pintando un gráfico de la evolución del peso durante el embarazo"]
[]
[null,"IMPORTANTE: No olvides guardar los cambios antes de salir"]
[]
["www.vivirlamaternidad.com"]

{"sheet":"INICIO","index":1,"n_rows":30,"n_cols":11,"rows_kept":30,"cut":false,"hidden":false,"merged":[[11,3,11,6],[12,1,12,4],[17,0,17,7],[1,1,2,5],[15,0,16,7],[9,3,9,6]]}
[]
[null,"VIVIR LA MATERNIDAD"]
[]
[]
[]
["Seleccione la fecha del primer día de la última regla"]
[null,null,null,"Día","Mes","Año"]
[null,null,null,1,10,2012]
[]
["Fecha de la última regla:",null,null,{"$f":"DATE(F8,E8,D8)","v":"2012-10-01"}]
[]
["Fecha probable de parto:",null,null,{"$f":"IF(D10<>\"\",D10+40*7,\"\")","v":"2013-07-08"}]
["Hoy es:",{"$f":"TODAY()","v":"2012-10-28"}]
["Quedan:",{"$f":"IF(D10<>\"\",D12-TODAY(),\"\")","v":253},"días para ver a tu bebé"]
["Semana de embarazo:",null,null,{"$f":"IF(D10<>\"\",TRUNC((TODAY()-D10)/7),\"\")","v":3},"semanas",{"$f":"IF(D10<>\"\",TODAY()-D10-(TRUNC((TODAY()-D10)/7)*7),\"\")","v":6},"días"]
["Consulta los primeros consejos en el embarazo"]
[]
["www.vivirlamaternidad.com"]
[]
[]
[]
[]
[]
[]
[]
[]
[]
[]
[]
[null,null,null,null,null,null,null,null,null,null,"06/03/2012"]

{"sheet":"AGENDA","index":2,"n_rows":469,"n_cols":9,"rows_kept":469,"cut":false,"hidden":false,"merged":[[6,0,8,8],[20,1,20,3],[2,1,3,7],[33,0,33,8],[22,1,22,2],[23,1,31,6],[11,1,11,7],[20,4,20,7],[4,0,5,8]]}
["2012-11-12",null,{"$f":"INICIO!D10","v":"2012-10-01"}]
[]
[null,"VIVIR LA MATERNIDAD"]
[]
["Consejo de Vivir la Maternidad"]
[]
["Tienes muchos recursos a tu disposición"]
[]
[]
[null,"Días con anotaciones"]
[null,"Días con consejos"]
[null,{"$f":"AUXILIAR!J23","v":"Noviembre 2012"}]
[null,{"$f":"AUXILIAR!J24","v":"Lunes"},{"$f":"AUXILIAR!K24","v":"Martes"},{"$f":"AUXILIAR!L24","v":"Miércoles"},{"$f":"AUXILIAR!M24","v":"Jueves"},{"$f":"AUXILIAR!N24","v":"Viernes"},{"$f":"AUXILIAR!O24","v":"Sábado"},{"$f":"AUXILIAR!P24","v":"Domingo"}]
[null,{"$f":"AUXILIAR!J25","v":""},{"$f":"AUXILIAR!K25","v":""},{"$f":"AUXILIAR!L25","v":""},{"$f":"AUXILIAR!M25","v":"2012-11-01"},{"$f":"AUXILIAR!N25","v":"2012-11-02"},{"$f":"AUXILIAR!O25","v":"2012-11-03"},{"$f":"AUXILIAR!P25","v":"2012-11-04"}]
[null,{"$f":"AUXILIAR!J26","v":"2012-11-05"},{"$f":"AUXILIAR!K26","v":"2012-11-06"},{"$f":"AUXILIAR!L26","v":"2012-11-07"},{"$f":"AUXILIAR!M26","v":"2012-11-08"},{"$f":"AUXILIAR!N26","v":"2012-11-09"},{"$f":"AUXILIAR!O26","v":"2012-11-10"},{"$f":"AUXILIAR!P26","v":"2012-11-11"}]
[null,{"$f":"AUXILIAR!J27","v":"2012-11-12"},{"$f":"AUXILIAR!K27","v":"2012-11-13"},{"$f":"AUXILIAR!L27","v":"2012-11-14"},{"$f":"AUXILIAR!M27","v":"2012-11-15"},{"$f":"AUXILIAR!N27","v":"2012-11-16"},{"$f":"AUXILIAR!O27","v":"2012-11-17"},{"$f":"AUXILIAR!P27","v":"2012-11-18"}]
[null,{"$f":"AUXILIAR!J28","v":"2012-11-19"},{"$f":"AUXILIAR!K28","v":"2012-11-20"},{"$f":"AUXILIAR!L28","v":"2012-11-21"},{"$f":"AUXILIAR!M28","v":"2012-11-22"},{"$f":"AUXILIAR!N28","v":"2012-11-23"},{"$f":"AUXILIAR!O28","v":"2012-11-24"},{"$f":"AUXILIAR!P28","v":"2012-11-25"}]
[null,{"$f":"AUXILIAR!J29","v":"2012-11-26"},{"$f":"AUXILIAR!K29","v":"2012-11-27"},{"$f":"AUXILIAR!L29","v":"2012-11-28"},{"$f":"AUXILIAR!M29","v":"2012-11-29"},{"$f":"AUXILIAR!N29","v":"2012-11-30"},{"$f":"AUXILIAR!O29","v":""},{"$f":"AUXILIAR!P29","v":""}]
[null,{"$f":"AUXILIAR!J30","v":""},{"$f":"AUXILIAR!K30","v":""},{"$f":"AUXILIAR!L30","v":""},{"$f":"AUXILIAR!M30","v":""},{"$f":"AUXILIAR!N30","v":""},{"$f":"AUXILIAR!O30","v":""},{"$f":"AUXILIAR!P30","v":""}]
[null,"",null,null,null,null,null,""]
[null,"Fecha seleccionada:",null,null,{"$f":"IF(AGENDA!$A$1<>\"\",$A$1,\"\")","v":"2012-11-12"}]
[]
[null,"Anotaciones",null,null,null,null,null,"Peso Kg"]
[null,"",null,null,null,null,null,""]
[]
[]
[]
[]
[]
[]
[]
[]
[]
["www.vivirlamaternidad.com"]
[]
[{"$f":"IF(AND(AGENDA!$A$1<>\"\",INDEX(tabladatos,AGENDA!$A$1-AGENDA!$C$1+1,1)<>\"\"),INDEX(tabladatos,AGENDA!$A$1-AGENDA!$C$1+1,1),\"\")","v":43},{"$f":"IF(AND(AGENDA!$A$1<>\"\",INDEX(tabladatos,AGENDA!$A$1-AGENDA!$C$1+1,2)<>\"\"),INDEX(tabladatos,AGENDA!$A$1-AGENDA!$C$1+1,2),\"\")","v":""},{"$f":"IF(AND(AGENDA!$A$1<>\"\",INDEX(tabladatos,AGENDA!$A$1-AGENDA!$C$1+1,3)<>\"\"),INDEX(tabladatos,AGENDA!$A$1-AGENDA!$C$1+1,3),\"\")","v":""},{"$f":"IF(AND(AGENDA!$A$1<>\"\",INDEX(tabladatos,AGENDA!$A$1-AGENDA!$C$1+1,4)<>\"\"),INDEX(tabladatos,AGENDA!$A$1-AGENDA!$C$1+1,4),\"\")","v":""},{"$f":"IF(AND(AGENDA!$A$1<>\"\",INDEX(tabladatos,AGENDA!$A$1-AGENDA!$C$1+1,5)<>\"\"),INDEX(tabladatos,AGENDA!$A$1-AGENDA!$C$1+1,5),\"\")","v":""},{"$f":"IF(AND(AGENDA!$A$1<>\"\",INDEX(tabladatos,AGENDA!$A$1-AGENDA!$C$1+1,6)<>\"\"),INDEX(tabladatos,AGENDA!$A$1-AGENDA!$C$1+1,6),\"\")","v":"http://www.vivirlamaternidad.com/material-de-consulta/menu-embarazo/recursos"},{"$f":"IF(AND(AGENDA!$A$1<>\"\",INDEX(tabladatos,AGENDA!$A$1-AGENDA!$C$1+1,7)<>\"\"),INDEX(tabladatos,AGENDA!$A$1-AGENDA!$C$1+1,7),\"\")","v":"Tienes muchos recursos a tu disposición"},{"$f":"IF(AND(AGENDA!$A$1<>\"\",INDEX(tabladatos,AGENDA!$A$1-AGENDA!$C$1+1,8)<>\"\"),INDEX(tabladatos,AGENDA!$A$1-AGENDA!$C$1+1,8),\"\")","v":""},{"$f":"IF(AND(AGENDA!$A$1<>\"\",INDEX(tabladatos,AGENDA!$A$1-AGENDA!$C$1+1,9)<>\"\"),INDEX(tabladatos,AGENDA!$A$1-AGENDA!$C$1+1,9),\"\")","v":""}]
[1,null,null,null,null,"http://www.vivirlamaternidad.com/consejos-practicos/durante-el-embarazo","Primeros consejos en el embarazo"]
[2]
[3]
[4]
[5]
[6]
[7]
[8]
[9]
[10]
[11]
[12]
[13]
[14]
[15]
[16]
[17]
[18]
[19]
[20]
[21]
[22]
[23]
[24]
[25]
[26]
[27]
[28]
[29]
[30]
[31]
[32]
[33]
[34]
[35]
[36]
[37]
[38]
[39]
[40]
[41]
[42]
[43,null,null,null,null,"http://www.vivirlamaternidad.com/material-de-consulta/menu-embarazo/recursos","Tienes muchos recursos a tu disposición"]
[44]
[45]
[46]
[47,null,null,null,null,"http://www.vivirlamaternidad.com/material-de-consulta/menu-embarazo/documentos/76-guias-de-cuidados-en-el-embarazo","Guías y cuidados para el embarazo"]
[48]
[49]
[50]
[51]
[52]
[53,null,null,null,null,"http://www.vivirlamaternidad.com/material-de-consulta/menu-embarazo/documentos/206-pruebas-en-el-embarazo","Pruebas que te van a hacer en el embarazo"]
[54]
[55]
[56]
[57]
[58,null,null,null,null,"http://www.vivirlamaternidad.com/material-de-consulta/menu-embarazo/documentos/242-listeriosis-y-toxoplasmosis","Cuidado con la listeriosis y la toxoplasmosis"]
[59]
[60]
[61]
[62,null,null,null,null,"http://www.vivirlamaternidad.com/material-de-consulta/menu-embarazo/documentos/93-consejos-de-nutricion-en-el-embarazo","Consejos de nutrición en el embarazo"]
[63]
[64]
[65,null,null,null,null,"http://www.vivirlamaternidad.com/material-de-consulta/menu-embarazo/documentos/199-videos-sobre-los-cambios-en-el-embarazo","Vídeos que te enseñan los cambios en el embarazo"]
[66]
[67]
[68]
[69]
[70]
[71]
[72]
[73,null,null,null,null,"http://www.vivirlamaternidad.com/material-de-consulta/menu-embarazo/documentos/252-legislacion","Infórmate de tus derechos"]
[74]
[75]
[76]
[77]
[78]
[79]
[80]
[81,null,null,null,null,"http://www.vivirlamaternidad.com/material-de-consulta/menu-embarazo/documentos/220-formacion-del-bebe","Aprende cómo se va fomando el bebé"]
[82]
[83]
[84]
[85]
[86,null,null,null,null,"http://www.vivirlamaternidad.com/material-de-consulta/menu-embarazo/documentos/200-desarrollo-emocional-intelectual-y-sensorial-del-nino-intrautero","Desarrollo emocional del bebé"]
[87]
[88]
[89]
[90]
[91]
[92]
[93]
[94,null,null,null,null,"http://www.vivirlamaternidad.com/material-de-consulta/menu-embarazo/enlaces-web","Enlaces web interesantes"]
[95]
[96]
[97]
[98]
[99]
[100]
[101]
[102]
[103,null,null,null,null,"http://www.vivirlamaternidad.com/material-de-consulta/menu-embarazo/documentos/249-sexualidad-en-el-embarazo","La sexualidad en el embarazo"]
[104]
[105]
[106]
[107]
[108]
[109]
[110]
[111]
[112]
[113]
[114]
[115]
[116]
[117]
[118]
[119,null,null,null,null,"http://www.vivirlamaternidad.com/educacion-maternal-y-posparto/preparacion-fisica-y-mental-online","Prepárate física y psicológicamente para el parto"]
[120]
[121]
[122]
[123]
[124]
[125,null,null,null,null,"http://www.vivirlamaternidad.com/educacion-maternal-y-posparto/educacion-maternal-online/introduccion","Comienza nuestra educación maternal on-line"]
[126,null,null,null,null,"http://www.vivirlamaternidad.com/educacion-maternal-y-posparto/educacion-maternal-online/sesion-1-cambios-en-el-embarazo","Sesión 1: conoce los cambios en el embarazo"]
[127]
[128]
[129]
[130]
[131]
[132]
[133,null,null,null,null,"http://www.vivirlamaternidad.com/educacion-maternal-y-posparto/educacion-maternal-online/sesion-2-cuidados-durante-el-embarazo","Sesión 2: cuidados en el embarazo"]
[134]
[135]
[136]
[137]
[138]
[139]
[140,null,null,null,null,"http://www.vivirlamaternidad.com/educacion-maternal-y-posparto/educacion-maternal-online/sesion-3-gimnasia-y-relajacion","Sesión 3: gimnasia y relajación"]
[141]
[142]
[143]
[144]
[145]
[146]
[147,null,null,null,null,"http://www.vivirlamaternidad.com/educacion-maternal-y-posparto/educacion-maternal-online/sesion-4-cuidados-del-suelo-pelvico","Sesión 4: cuidados del suelo pélvico"]
[148]
[149]
[150]
[151]
[152]
[153]
[154,null,null,null,null,"http://www.vivirlamaternidad.com/educacion-maternal-y-posparto/educacion-maternal-online/sesion-5-proceso-del-parto","Sesión 5: proceso del parto"]
[155]
[156]
[157]
[158]
[159]
[160]
[161,null,null,null,null,"http://www.vivirlamaternidad.com/educacion-maternal-y-posparto/educacion-maternal-online/sesion-6-posparto","Sesión 6: posparto"]
[162]
[163]
[164]
[165]
[166]
[167]
[168,null,null,null,null,"http://www.vivirlamaternidad.com/educacion-maternal-y-posparto/educacion-maternal-online/sesion-7-lactancia","Sesión 7: la lactancia"]
[169]
[170]
[171]
[172]
[173]
[174]
[175,null,null,null,null,"http://www.vivirlamaternidad.com/educacion-maternal-y-posparto/educacion-maternal-online/sesion-8-recien-nacido","Sesión 8: el recién nacido"]
[176,null,null,null,null,"http://www.vivirlamaternidad.com/educacion-maternal-y-posparto/educacion-maternal-online/diploma-final","Enhorabuena! Ya puedes rellenar tu diploma"]
[177,null,null,null,null,"http://www.vivirlamaternidad.com/preguntas-frecuentes/mandanos-tu-pregunta","No te quedes con dudas consúltalas"]
[178]
[179]
[180]
[181,null,null,null,null,"http://www.vivirlamaternidad.com/consejos-practicos/de-preparacion-del-parto","¿Cómo nos preparamos para el parto?"]
[182]
[183]
[184,null,null,null,null,"http://www.vivirlamaternidad.com/material-de-consulta/parto/doc-parto/222-recomendaciones-en-un-parto-normal","Recomendaciones para un parto feliz"]
[185,null,null,null,null,"http://www.vivirlamaternidad.com/material-de-consulta/parto/doc-parto/253-aliviar-el-dolor-en-el-parto","Cómo aliviar el dolor en el parto"]
[186]
[187]
[188]
[189,null,null,null,null,"http://www.vivirlamaternidad.com/material-de-consulta/parto/doc-parto/113-atencion-al-parto-normal-y-tipos-de-parto","Guías de atención al parto y tipos de parto"]
[190]
[191]
[192]
[193]
[194,null,null,null,null,"http://www.vivirlamaternidad.com/material-de-consulta/parto/rec-parto/114-plan-de-parto-y-nacimiento","No olvides hacer un plan de parto es muy útil"]
[195]
[196]
[197]
[198]
[199]
[200,null,null,null,null,"http://www.vivirlamaternidad.com/material-de-consulta/parto/rec-parto/89-donacion-de-la-sangre-del-cordon-umbilical","Donación de la sangre del cordón umbilical"]
[201]
[202]
[203]
[204]
[205,null,null,null,null,"http://www.vivirlamaternidad.com/material-de-consulta/parto/en-parto","Enlaces interesantes para el parto"]
[206]
[207]
[208]
[209]
[210]
[211]
[212]
[213]
[214]
[215]
[216,null,null,null,null,"http://www.vivirlamaternidad.com/material-de-consulta/postparto/recursos/80-tramites-nacimiento-de-un-hijo-en-espana","Trámites a realizar para un nuevo bebé"]
[217]
[218]
[219]
[220]
[221]
[222]
[223]
[224]
[225]
[226]
[227]
[228]
[229]
[230]
[231]
[232]
[233]
[234]
[235]
[236]
[237]
[238]
[239]
[240]
[241]
[242]
[243]
[244]
[245]
[246]
[247]
[248]
[249]
[250]
[251]
[252]
[253]
[254]
[255]
[256]
[257]
[258]
[259]
[260]
[261]
[262]
[263]
[264]
[265]
[266]
[267]
[268]
[269]
[270]
[271]
[272]
[273]
[274]
[275]
[276]
[277]
[278]
[279]
[280]
[281]
[282]
[283]
[284]
[285]
[286]
[287]
[288]
[289]
[290]
[291]
[292]
[293]
[294]
[295]
[296]
[297]
[298]
[299]
[300]
[301]
[302]
[303]
[304]
[305]
[306]
[307]
[308]
[309]
[310]
[311]
[312]
[313]
[314]
[315]
[316]
[317]
[318]
[319]
[320]
[321]
[322]
[323]
[324]
[325]
[326]
[327]
[328]
[329]
[330]
[331]
[332]
[333]
[334]
[335]
[336]
[337]
[338]
[339]
[340]
[341]
[342]
[343]
[344]
[345]
[346]
[347]
[348]
[349]
[350]
[351]
[352]
[353]
[354]
[355]
[356]
[357]
[358]
[359]
[360]
[361]
[362]
[363]
[364]
[365]
[366]
[367]
[368]
[369]
[370]
[371]
[372]
[373]
[374]
[375]
[376]
[377]
[378]
[379]
[380]
[381]
[382]
[383]
[384]
[385]
[386]
[387]
[388]
[389]
[390]
[391]
[392]
[393]
[394]
[395]
[396]
[397]
[398]
[399]
[400]
[401]
[402]
[403]
[404]
[405]
[406]
[407]
[408]
[409]
[410]
[411]
[412]
[413]
[414]
[415]
[416]
[417]
[418]
[419]
[420]
[421]
[422]
[423]
[424]
[425]
[426]
[427]
[428]
[429]
[]
[null,"Max",{"$f":"MAX(C37:C316)","v":0}]
[null,"Mínimo",{"$f":"MIN(C37:C316)","v":0}]
[null,"Resta",{"$f":"C467-C468","v":0}]

{"sheet":"PESO","index":3,"n_rows":718,"n_cols":16,"rows_kept":718,"cut":false,"hidden":false,"merged":[[24,0,24,7],[1,1,2,5],[18,3,18,6],[19,1,19,4],[22,0,23,7]]}
[null,null,null,null,null,null,null,null,null,null,null,null,null,null,null,{"$f":"IF(AGENDA!C37<>\"\",AGENDA!C37,\"\")","v":""}]
[null,"VIVIR LA MATERNIDAD",null,null,null,null,null,null,null,null,null,null,null,null,null,{"$f":"IF(AGENDA!C38<>\"\",AGENDA!C38,\"\")","v":""}]
[null,null,null,null,null,null,null,null,null,null,null,null,null,null,null,{"$f":"IF(AGENDA!C39<>\"\",AGENDA!C39,\"\")","v":""}]
[null,null,null,null,null,null,null,null,null,null,null,null,null,null,null,{"$f":"IF(AGENDA!C40<>\"\",AGENDA!C40,\"\")","v":""}]
[null,null,null,null,null,null,null,null,null,null,null,null,null,null,null,{"$f":"IF(AGENDA!C41<>\"\",AGENDA!C41,\"\")","v":""}]
[null,null,null,null,null,null,null,null,null,null,null,null,null,null,null,{"$f":"IF(AGENDA!C42<>\"\",AGENDA!C42,\"\")","v":""}]
[null,null,null,null,null,null,null,null,null,null,null,null,null,null,null,{"$f":"IF(AGENDA!C43<>\"\",AGENDA!C43,\"\")","v":""}]
[null,null,null,null,null,null,null,null,null,null,null,null,null,null,null,{"$f":"IF(AGENDA!C44<>\"\",AGENDA!C44,\"\")","v":""}]
[null,null,null,null,null,null,null,null,null,null,null,null,null,null,null,{"$f":"IF(AGENDA!C45<>\"\",AGENDA!C45,\"\")","v":""}]
[null,null,null,null,null,null,null,null,null,null,null,null,null,null,null,{"$f":"IF(AGENDA!C46<>\"\",AGENDA!C46,\"\")","v":""}]
[null,null,null,null,null,null,null,null,null,null,null,null,null,null,null,{"$f":"IF(AGENDA!C47<>\"\",AGENDA!C47,\"\")","v":""}]
[null,null,null,null,null,null,null,null,null,null,null,null,null,null,null,{"$f":"IF(AGENDA!C48<>\"\",AGENDA!C48,\"\")","v":""}]
[null,null,null,null,null,null,null,null,null,null,null,null,null,null,null,{"$f":"IF(AGENDA!C49<>\"\",AGENDA!C49,\"\")","v":""}]
[null,null,null,null,null,null,null,null,null,null,null,null,null,null,null,{"$f":"IF(AGENDA!C50<>\"\",AGENDA!C50,\"\")","v":""}]
[null,null,null,null,null,null,null,null,null,null,null,null,null,null,null,{"$f":"IF(AGENDA!C51<>\"\",AGENDA!C51,\"\")","v":""}]
[null,null,null,null,null,null,null,null,null,null,null,null,null,null,null,{"$f":"IF(AGENDA!C52<>\"\",AGENDA!C52,\"\")","v":""}]
[null,null,null,null,null,null,null,null,null,null,null,null,null,null,null,{"$f":"IF(AGENDA!C53<>\"\",AGENDA!C53,\"\")","v":""}]
[null,null,null,null,null,null,null,null,null,null,null,null,null,null,null,{"$f":"IF(AGENDA!C54<>\"\",AGENDA!C54,\"\")","v":""}]
[null,null,null,null,null,null,null,null,null,null,null,null,null,null,null,{"$f":"IF(AGENDA!C55<>\"\",AGENDA!C55,\"\")","v":""}]
[null,null,null,null,null,null,null,null,null,null,null,null,null,null,null,{"$f":"IF(AGENDA!C56<>\"\",AGENDA!C56,\"\")","v":""}]
[null,null,null,null,null,null,null,null,null,null,null,null,null,null,null,{"$f":"IF(AGENDA!C57<>\"\",AGENDA!C57,\"\")","v":""}]
[null,null,null,null,null,null,null,null,null,null,null,null,null,null,null,{"$f":"IF(AGENDA!C58<>\"\",AGENDA!C58,\"\")","v":""}]
["Información sobre nutrición en el embarazo",null,null,null,null,null,null,null,null,null,null,null,null,null,null,{"$f":"IF(AGENDA!C59<>\"\",AGENDA!C59,\"\")","v":""}]
[null,null,null,null,null,null,null,null,null,null,null,null,null,null,null,{"$f":"IF(AGENDA!C60<>\"\",AGENDA!C60,\"\")","v":""}]
["www.vivirlamaternidad.com",null,null,null,null,null,null,null,null,null,null,null,null,null,null,{"$f":"IF(AGENDA!C61<>\"\",AGENDA!C61,\"\")","v":""}]
[null,null,null,null,null,null,null,null,null,null,null,null,null,null,null,{"$f":"IF(AGENDA!C62<>\"\",AGENDA!C62,\"\")","v":""}]
[null,null,null,null,null,null,null,null,null,null,null,null,null,null,null,{"$f":"IF(AGENDA!C63<>\"\",AGENDA!C63,\"\")","v":""}]
[null,null,null,null,null,null,null,null,null,null,null,null,null,null,null,{"$f":"IF(AGENDA!C64<>\"\",AGENDA!C64,\"\")","v":""}]
[null,null,null,null,null,null,null,null,null,null,null,null,null,null,null,{"$f":"IF(AGENDA!C65<>\"\",AGENDA!C65,\"\")","v":""}]
[null,null,null,null,null,null,null,null,null,null,null,null,null,null,null,{"$f":"IF(AGENDA!C66<>\"\",AGENDA!C66,\"\")","v":""}]
[null,null,null,null,null,null,null,null,null,null,null,null,null,null,null,{"$f":"IF(AGENDA!C67<>\"\",AGENDA!C67,\"\")","v":""}]
[null,null,null,null,null,null,null,null,null,null,null,null,null,null,null,{"$f":"IF(AGENDA!C68<>\"\",AGENDA!C68,\"\")","v":""}]
[null,null,null,null,null,null,null,null,null,null,null,null,null,null,null,{"$f":"IF(AGENDA!C69<>\"\",AGENDA!C69,\"\")","v":""}]
[null,null,null,null,null,null,null,null,null,null,null,null,null,null,null,{"$f":"IF(AGENDA!C70<>\"\",AGENDA!C70,\"\")","v":""}]
[null,null,null,null,null,null,null,null,null,null,null,null,null,null,null,{"$f":"IF(AGENDA!C71<>\"\",AGENDA!C71,\"\")","v":""}]
[null,null,null,null,null,null,null,null,null,null,null,null,null,null,null,{"$f":"IF(AGENDA!C72<>\"\",AGENDA!C72,\"\")","v":""}]
[null,null,null,null,null,null,null,null,null,null,null,null,null,null,null,{"$f":"IF(AGENDA!C73<>\"\",AGENDA!C73,\"\")","v":""}]
[null,null,null,null,null,null,null,null,null,null,null,null,null,null,null,{"$f":"IF(AGENDA!C74<>\"\",AGENDA!C74,\"\")","v":""}]
[null,null,null,null,null,null,null,null,null,null,null,null,null,null,null,{"$f":"IF(AGENDA!C75<>\"\",AGENDA!C75,\"\")","v":""}]
[null,null,null,null,null,null,null,null,null,null,null,null,null,null,null,{"$f":"IF(AGENDA!C76<>\"\",AGENDA!C76,\"\")","v":""}]
[null,null,null,null,null,null,null,null,null,null,null,null,null,null,null,{"$f":"IF(AGENDA!C77<>\"\",AGENDA!C77,\"\")","v":""}]
[null,null,null,null,null,null,null,null,null,null,null,null,null,null,null,{"$f":"IF(AGENDA!C78<>\"\",AGENDA!C78,\"\")","v":""}]
[null,null,null,null,null,null,null,null,null,null,null,null,null,null,null,{"$f":"IF(AGENDA!C79<>\"\",AGENDA!C79,\"\")","v":""}]
[null,null,null,null,null,null,null,null,null,null,null,null,null,null,null,{"$f":"IF(AGENDA!C80<>\"\",AGENDA!C80,\"\")","v":""}]
[null,null,null,null,null,null,null,null,null,null,null,null,null,null,null,{"$f":"IF(AGENDA!C81<>\"\",AGENDA!C81,\"\")","v":""}]
[null,null,null,null,null,null,null,null,null,null,null,null,null,null,null,{"$f":"IF(AGENDA!C82<>\"\",AGENDA!C82,\"\")","v":""}]
[null,null,null,null,null,null,null,null,null,null,null,null,null,null,null,{"$f":"IF(AGENDA!C83<>\"\",AGENDA!C83,\"\")","v":""}]
[null,null,null,null,null,null,null,null,null,null,null,null,null,null,null,{"$f":"IF(AGENDA!C84<>\"\",AGENDA!C84,\"\")","v":""}]
[null,null,null,null,null,null,null,null,null,null,null,null,null,null,null,{"$f":"IF(AGENDA!C85<>\"\",AGENDA!C85,\"\")","v":""}]
[null,null,null,null,null,null,null,null,null,null,null,null,null,null,null,{"$f":"IF(AGENDA!C86<>\"\",AGENDA!C86,\"\")","v":""}]
[null,null,null,null,null,null,null,null,null,null,null,null,null,null,null,{"$f":"IF(AGENDA!C87<>\"\",AGENDA!C87,\"\")","v":""}]
[null,null,null,null,null,null,null,null,null,null,null,null,null,null,null,{"$f":"IF(AGENDA!C88<>\"\",AGENDA!C88,\"\")","v":""}]
[null,null,null,null,null,null,null,null,null,null,null,null,null,null,null,{"$f":"IF(AGENDA!C89<>\"\",AGENDA!C89,\"\")","v":""}]
[null,null,null,null,null,null,null,null,null,null,null,null,null,null,null,{"$f":"IF(AGENDA!C90<>\"\",AGENDA!C90,\"\")","v":""}]
[null,null,null,null,null,null,null,null,null,null,null,null,null,null,null,{"$f":"IF(AGENDA!C91<>\"\",AGENDA!C91,\"\")","v":""}]
[null,null,null,null,null,null,null,null,null,null,null,null,null,null,null,{"$f":"IF(AGENDA!C92<>\"\",AGENDA!C92,\"\")","v":""}]
[null,null,null,null,null,null,null,null,null,null,null,null,null,null,null,{"$f":"IF(AGENDA!C93<>\"\",AGENDA!C93,\"\")","v":""}]
[null,null,null,null,null,null,null,null,null,null,null,null,null,null,null,{"$f":"IF(AGENDA!C94<>\"\",AGENDA!C94,\"\")","v":""}]
[null,null,null,null,null,null,null,null,null,null,null,null,null,null,null,{"$f":"IF(AGENDA!C95<>\"\",AGENDA!C95,\"\")","v":""}]
[null,null,null,null,null,null,null,null,null,null,null,null,null,null,null,{"$f":"IF(AGENDA!C96<>\"\",AGENDA!C96,\"\")","v":""}]
[null,null,null,null,null,null,null,null,null,null,null,null,null,null,null,{"$f":"IF(AGENDA!C97<>\"\",AGENDA!C97,\"\")","v":""}]
[null,null,null,null,null,null,null,null,null,null,null,null,null,null,null,{"$f":"IF(AGENDA!C98<>\"\",AGENDA!C98,\"\")","v":""}]
[null,null,null,null,null,null,null,null,null,null,null,null,null,null,null,{"$f":"IF(AGENDA!C99<>\"\",AGENDA!C99,\"\")","v":""}]
[null,null,null,null,null,null,null,null,null,null,null,null,null,null,null,{"$f":"IF(AGENDA!C100<>\"\",AGENDA!C100,\"\")","v":""}]
[null,null,null,null,null,null,null,null,null,null,null,null,null,null,null,{"$f":"IF(AGENDA!C101<>\"\",AGENDA!C101,\"\")","v":""}]
[null,null,null,null,null,null,null,null,null,null,null,null,null,null,null,{"$f":"IF(AGENDA!C102<>\"\",AGENDA!C102,\"\")","v":""}]
[null,null,null,null,null,null,null,null,null,null,null,null,null,null,null,{"$f":"IF(AGENDA!C103<>\"\",AGENDA!C103,\"\")","v":""}]
[null,null,null,null,null,null,null,null,null,null,null,null,null,null,null,{"$f":"IF(AGENDA!C104<>\"\",AGENDA!C104,\"\")","v":""}]
[null,null,null,null,null,null,null,null,null,null,null,null,null,null,null,{"$f":"IF(AGENDA!C105<>\"\",AGENDA!C105,\"\")","v":""}]
[null,null,null,null,null,null,null,null,null,null,null,null,null,null,null,{"$f":"IF(AGENDA!C106<>\"\",AGENDA!C106,\"\")","v":""}]
[null,null,null,null,null,null,null,null,null,null,null,null,null,null,null,{"$f":"IF(AGENDA!C107<>\"\",AGENDA!C107,\"\")","v":""}]
[null,null,null,null,null,null,null,null,null,null,null,null,null,null,null,{"$f":"IF(AGENDA!C108<>\"\",AGENDA!C108,\"\")","v":""}]
[null,null,null,null,null,null,null,null,null,null,null,null,null,null,null,{"$f":"IF(AGENDA!C109<>\"\",AGENDA!C109,\"\")","v":""}]
[null,null,null,null,null,null,null,null,null,null,null,null,null,null,null,{"$f":"IF(AGENDA!C110<>\"\",AGENDA!C110,\"\")","v":""}]
[null,null,null,null,null,null,null,null,null,null,null,null,null,null,null,{"$f":"IF(AGENDA!C111<>\"\",AGENDA!C111,\"\")","v":""}]
[null,null,null,null,null,null,null,null,null,null,null,null,null,null,null,{"$f":"IF(AGENDA!C112<>\"\",AGENDA!C112,\"\")","v":""}]
[null,null,null,null,null,null,null,null,null,null,null,null,null,null,null,{"$f":"IF(AGENDA!C113<>\"\",AGENDA!C113,\"\")","v":""}]
[null,null,null,null,null,null,null,null,null,null,null,null,null,null,null,{"$f":"IF(AGENDA!C114<>\"\",AGENDA!C114,\"\")","v":""}]
[null,null,null,null,null,null,null,null,null,null,null,null,null,null,null,{"$f":"IF(AGENDA!C115<>\"\",AGENDA!C115,\"\")","v":""}]
[null,null,null,null,null,null,null,null,null,null,null,null,null,null,null,{"$f":"IF(AGENDA!C116<>\"\",AGENDA!C116,\"\")","v":""}]
[null,null,null,null,null,null,null,null,null,null,null,null,null,null,null,{"$f":"IF(AGENDA!C117<>\"\",AGENDA!C117,\"\")","v":""}]
[null,null,null,null,null,null,null,null,null,null,null,null,null,null,null,{"$f":"IF(AGENDA!C118<>\"\",AGENDA!C118,\"\")","v":""}]
[null,null,null,null,null,null,null,null,null,null,null,null,null,null,null,{"$f":"IF(AGENDA!C119<>\"\",AGENDA!C119,\"\")","v":""}]
[null,null,null,null,null,null,null,null,null,null,null,null,null,null,null,{"$f":"IF(AGENDA!C120<>\"\",AGENDA!C120,\"\")","v":""}]
[null,null,null,null,null,null,null,null,null,null,null,null,null,null,null,{"$f":"IF(AGENDA!C121<>\"\",AGENDA!C121,\"\")","v":""}]
[null,null,null,null,null,null,null,null,null,null,null,null,null,null,null,{"$f":"IF(AGENDA!C122<>\"\",AGENDA!C122,\"\")","v":""}]
[null,null,null,null,null,null,null,null,null,null,null,null,null,null,null,{"$f":"IF(AGENDA!C123<>\"\",AGENDA!C123,\"\")","v":""}]
[null,null,null,null,null,null,null,null,null,null,null,null,null,null,null,{"$f":"IF(AGENDA!C124<>\"\",AGENDA!C124,\"\")","v":""}]
[null,null,null,null,null,null,null,null,null,null,null,null,null,null,null,{"$f":"IF(AGENDA!C125<>\"\",AGENDA!C125,\"\")","v":""}]
[null,null,null,null,null,null,null,null,null,null,null,null,null,null,null,{"$f":"IF(AGENDA!C126<>\"\",AGENDA!C126,\"\")","v":""}]
[null,null,null,null,null,null,null,null,null,null,null,null,null,null,null,{"$f":"IF(AGENDA!C127<>\"\",AGENDA!C127,\"\")","v":""}]
[null,null,null,null,null,null,null,null,null,null,null,null,null,null,null,{"$f":"IF(AGENDA!C128<>\"\",AGENDA!C128,\"\")","v":""}]
[null,null,null,null,null,null,null,null,null,null,null,null,null,null,null,{"$f":"IF(AGENDA!C129<>\"\",AGENDA!C129,\"\")","v":""}]
[null,null,null,null,null,null,null,null,null,null,null,null,null,null,null,{"$f":"IF(AGENDA!C130<>\"\",AGENDA!C130,\"\")","v":""}]
[null,null,null,null,null,null,null,null,null,null,null,null,null,null,null,{"$f":"IF(AGENDA!C131<>\"\",AGENDA!C131,\"\")","v":""}]
[null,null,null,null,null,null,null,null,null,null,null,null,null,null,null,{"$f":"IF(AGENDA!C132<>\"\",AGENDA!C132,\"\")","v":""}]
[null,null,null,null,null,null,null,null,null,null,null,null,null,null,null,{"$f":"IF(AGENDA!C133<>\"\",AGENDA!C133,\"\")","v":""}]
[null,null,null,null,null,null,null,null,null,null,null,null,null,null,null,{"$f":"IF(AGENDA!C134<>\"\",AGENDA!C134,\"\")","v":""}]
[null,null,null,null,null,null,null,null,null,null,null,null,null,null,null,{"$f":"IF(AGENDA!C135<>\"\",AGENDA!C135,\"\")","v":""}]
[null,null,null,null,null,null,null,null,null,null,null,null,null,null,null,{"$f":"IF(AGENDA!C136<>\"\",AGENDA!C136,\"\")","v":""}]
[null,null,null,null,null,null,null,null,null,null,null,null,null,null,null,{"$f":"IF(AGENDA!C137<>\"\",AGENDA!C137,\"\")","v":""}]
[null,null,null,null,null,null,null,null,null,null,null,null,null,null,null,{"$f":"IF(AGENDA!C138<>\"\",AGENDA!C138,\"\")","v":""}]
[null,null,null,null,null,null,null,null,null,null,null,null,null,null,null,{"$f":"IF(AGENDA!C139<>\"\",AGENDA!C139,\"\")","v":""}]
[null,null,null,null,null,null,null,null,null,null,null,null,null,null,null,{"$f":"IF(AGENDA!C140<>\"\",AGENDA!C140,\"\")","v":""}]
[null,null,null,null,null,null,null,null,null,null,null,null,null,null,null,{"$f":"IF(AGENDA!C141<>\"\",AGENDA!C141,\"\")","v":""}]
[null,null,null,null,null,null,null,null,null,null,null,null,null,null,null,{"$f":"IF(AGENDA!C142<>\"\",AGENDA!C142,\"\")","v":""}]
[null,null,null,null,null,null,null,null,null,null,null,null,null,null,null,{"$f":"IF(AGENDA!C143<>\"\",AGENDA!C143,\"\")","v":""}]
[null,null,null,null,null,null,null,null,null,null,null,null,null,null,null,{"$f":"IF(AGENDA!C144<>\"\",AGENDA!C144,\"\")","v":""}]
[null,null,null,null,null,null,null,null,null,null,null,null,null,null,null,{"$f":"IF(AGENDA!C145<>\"\",AGENDA!C145,\"\")","v":""}]
[null,null,null,null,null,null,null,null,null,null,null,null,null,null,null,{"$f":"IF(AGENDA!C146<>\"\",AGENDA!C146,\"\")","v":""}]
[null,null,null,null,null,null,null,null,null,null,null,null,null,null,null,{"$f":"IF(AGENDA!C147<>\"\",AGENDA!C147,\"\")","v":""}]
[null,null,null,null,null,null,null,null,null,null,null,null,null,null,null,{"$f":"IF(AGENDA!C148<>\"\",AGENDA!C148,\"\")","v":""}]
[null,null,null,null,null,null,null,null,null,null,null,null,null,null,null,{"$f":"IF(AGENDA!C149<>\"\",AGENDA!C149,\"\")","v":""}]
[null,null,null,null,null,null,null,null,null,null,null,null,null,null,null,{"$f":"IF(AGENDA!C150<>\"\",AGENDA!C150,\"\")","v":""}]
[null,null,null,null,null,null,null,null,null,null,null,null,null,null,null,{"$f":"IF(AGENDA!C151<>\"\",AGENDA!C151,\"\")","v":""}]
[null,null,null,null,null,null,null,null,null,null,null,null,null,null,null,{"$f":"IF(AGENDA!C152<>\"\",AGENDA!C152,\"\")","v":""}]
[null,null,null,null,null,null,null,null,null,null,null,null,null,null,null,{"$f":"IF(AGENDA!C153<>\"\",AGENDA!C153,\"\")","v":""}]
[null,null,null,null,null,null,null,null,null,null,null,null,null,null,null,{"$f":"IF(AGENDA!C154<>\"\",AGENDA!C154,\"\")","v":""}]
[null,null,null,null,null,null,null,null,null,null,null,null,null,null,null,{"$f":"IF(AGENDA!C155<>\"\",AGENDA!C155,\"\")","v":""}]
[null,null,null,null,null,null,null,null,null,null,null,null,null,null,null,{"$f":"IF(AGENDA!C156<>\"\",AGENDA!C156,\"\")","v":""}]
[null,null,null,null,null,null,null,null,null,null,null,null,null,null,null,{"$f":"IF(AGENDA!C157<>\"\",AGENDA!C157,\"\")","v":""}]
[null,null,null,null,null,null,null,null,null,null,null,null,null,null,null,{"$f":"IF(AGENDA!C158<>\"\",AGENDA!C158,\"\")","v":""}]
[null,null,null,null,null,null,null,null,null,null,null,null,null,null,null,{"$f":"IF(AGENDA!C159<>\"\",AGENDA!C159,\"\")","v":""}]
[null,null,null,null,null,null,null,null,null,null,null,null,null,null,null,{"$f":"IF(AGENDA!C160<>\"\",AGENDA!C160,\"\")","v":""}]
[null,null,null,null,null,null,null,null,null,null,null,null,null,null,null,{"$f":"IF(AGENDA!C161<>\"\",AGENDA!C161,\"\")","v":""}]
[null,null,null,null,null,null,null,null,null,null,null,null,null,null,null,{"$f":"IF(AGENDA!C162<>\"\",AGENDA!C162,\"\")","v":""}]
[null,null,null,null,null,null,null,null,null,null,null,null,null,null,null,{"$f":"IF(AGENDA!C163<>\"\",AGENDA!C163,\"\")","v":""}]
[null,null,null,null,null,null,null,null,null,null,null,null,null,null,null,{"$f":"IF(AGENDA!C164<>\"\",AGENDA!C164,\"\")","v":""}]
[null,null,null,null,null,null,null,null,null,null,null,null,null,null,null,{"$f":"IF(AGENDA!C165<>\"\",AGENDA!C165,\"\")","v":""}]
[null,null,null,null,null,null,null,null,null,null,null,null,null,null,null,{"$f":"IF(AGENDA!C166<>\"\",AGENDA!C166,\"\")","v":""}]
[null,null,null,null,null,null,null,null,null,null,null,null,null,null,null,{"$f":"IF(AGENDA!C167<>\"\",AGENDA!C167,\"\")","v":""}]
[null,null,null,null,null,null,null,null,null,null,null,null,null,null,null,{"$f":"IF(AGENDA!C168<>\"\",AGENDA!C168,\"\")","v":""}]
[null,null,null,null,null,null,null,null,null,null,null,null,null,null,null,{"$f":"IF(AGENDA!C169<>\"\",AGENDA!C169,\"\")","v":""}]
[null,null,null,null,null,null,null,null,null,null,null,null,null,null,null,{"$f":"IF(AGENDA!C170<>\"\",AGENDA!C170,\"\")","v":""}]
[null,null,null,null,null,null,null,null,null,null,null,null,null,null,null,{"$f":"IF(AGENDA!C171<>\"\",AGENDA!C171,\"\")","v":""}]
[null,null,null,null,null,null,null,null,null,null,null,null,null,null,null,{"$f":"IF(AGENDA!C172<>\"\",AGENDA!C172,\"\")","v":""}]
[null,null,null,null,null,null,null,null,null,null,null,null,null,null,null,{"$f":"IF(AGENDA!C173<>\"\",AGENDA!C173,\"\")","v":""}]
[null,null,null,null,null,null,null,null,null,null,null,null,null,null,null,{"$f":"IF(AGENDA!C174<>\"\",AGENDA!C174,\"\")","v":""}]
[null,null,null,null,null,null,null,null,null,null,null,null,null,null,null,{"$f":"IF(AGENDA!C175<>\"\",AGENDA!C175,\"\")","v":""}]
[null,null,null,null,null,null,null,null,null,null,null,null,null,null,null,{"$f":"IF(AGENDA!C176<>\"\",AGENDA!C176,\"\")","v":""}]
[null,null,null,null,null,null,null,null,null,null,null,null,null,null,null,{"$f":"IF(AGENDA!C177<>\"\",AGENDA!C177,\"\")","v":""}]
[null,null,null,null,null,null,null,null,null,null,null,null,null,null,null,{"$f":"IF(AGENDA!C178<>\"\",AGENDA!C178,\"\")","v":""}]
[null,null,null,null,null,null,null,null,null,null,null,null,null,null,null,{"$f":"IF(AGENDA!C179<>\"\",AGENDA!C179,\"\")","v":""}]
[null,null,null,null,null,null,null,null,null,null,null,null,null,null,null,{"$f":"IF(AGENDA!C180<>\"\",AGENDA!C180,\"\")","v":""}]
[null,null,null,null,null,null,null,null,null,null,null,null,null,null,null,{"$f":"IF(AGENDA!C181<>\"\",AGENDA!C181,\"\")","v":""}]
[null,null,null,null,null,null,null,null,null,null,null,null,null,null,null,{"$f":"IF(AGENDA!C182<>\"\",AGENDA!C182,\"\")","v":""}]
[null,null,null,null,null,null,null,null,null,null,null,null,null,null,null,{"$f":"IF(AGENDA!C183<>\"\",AGENDA!C183,\"\")","v":""}]
[null,null,null,null,null,null,null,null,null,null,null,null,null,null,null,{"$f":"IF(AGENDA!C184<>\"\",AGENDA!C184,\"\")","v":""}]
[null,null,null,null,null,null,null,null,null,null,null,null,null,null,null,{"$f":"IF(AGENDA!C185<>\"\",AGENDA!C185,\"\")","v":""}]
[null,null,null,null,null,null,null,null,null,null,null,null,null,null,null,{"$f":"IF(AGENDA!C186<>\"\",AGENDA!C186,\"\")","v":""}]
[null,null,null,null,null,null,null,null,null,null,null,null,null,null,null,{"$f":"IF(AGENDA!C187<>\"\",AGENDA!C187,\"\")","v":""}]
[null,null,null,null,null,null,null,null,null,null,null,null,null,null,null,{"$f":"IF(AGENDA!C188<>\"\",AGENDA!C188,\"\")","v":""}]
[null,null,null,null,null,null,null,null,null,null,null,null,null,null,null,{"$f":"IF(AGENDA!C189<>\"\",AGENDA!C189,\"\")","v":""}]
[null,null,null,null,null,null,null,null,null,null,null,null,null,null,null,{"$f":"IF(AGENDA!C190<>\"\",AGENDA!C190,\"\")","v":""}]
[null,null,null,null,null,null,null,null,null,null,null,null,null,null,null,{"$f":"IF(AGENDA!C191<>\"\",AGENDA!C191,\"\")","v":""}]
[null,null,null,null,null,null,null,null,null,null,null,null,null,null,null,{"$f":"IF(AGENDA!C192<>\"\",AGENDA!C192,\"\")","v":""}]
[null,null,null,null,null,null,null,null,null,null,null,null,null,null,null,{"$f":"IF(AGENDA!C193<>\"\",AGENDA!C193,\"\")","v":""}]
[null,null,null,null,null,null,null,null,null,null,null,null,null,null,null,{"$f":"IF(AGENDA!C194<>\"\",AGENDA!C194,\"\")","v":""}]
[null,null,null,null,null,null,null,null,null,null,null,null,null,null,null,{"$f":"IF(AGENDA!C195<>\"\",AGENDA!C195,\"\")","v":""}]
[null,null,null,null,null,null,null,null,null,null,null,null,null,null,null,{"$f":"IF(AGENDA!C196<>\"\",AGENDA!C196,\"\")","v":""}]
[null,null,null,null,null,null,null,null,null,null,null,null,null,null,null,{"$f":"IF(AGENDA!C197<>\"\",AGENDA!C197,\"\")","v":""}]
[null,null,null,null,null,null,null,null,null,null,null,null,null,null,null,{"$f":"IF(AGENDA!C198<>\"\",AGENDA!C198,\"\")","v":""}]
[null,null,null,null,null,null,null,null,null,null,null,null,null,null,null,{"$f":"IF(AGENDA!C199<>\"\",AGENDA!C199,\"\")","v":""}]
[null,null,null,null,null,null,null,null,null,null,null,null,null,null,null,{"$f":"IF(AGENDA!C200<>\"\",AGENDA!C200,\"\")","v":""}]
[null,null,null,null,null,null,null,null,null,null,null,null,null,null,null,{"$f":"IF(AGENDA!C201<>\"\",AGENDA!C201,\"\")","v":""}]
[null,null,null,null,null,null,null,null,null,null,null,null,null,null,null,{"$f":"IF(AGENDA!C202<>\"\",AGENDA!C202,\"\")","v":""}]
[null,null,null,null,null,null,null,null,null,null,null,null,null,null,null,{"$f":"IF(AGENDA!C203<>\"\",AGENDA!C203,\"\")","v":""}]
[null,null,null,null,null,null,null,null,null,null,null,null,null,null,null,{"$f":"IF(AGENDA!C204<>\"\",AGENDA!C204,\"\")","v":""}]
[null,null,null,null,null,null,null,null,null,null,null,null,null,null,null,{"$f":"IF(AGENDA!C205<>\"\",AGENDA!C205,\"\")","v":""}]
[null,null,null,null,null,null,null,null,null,null,null,null,null,null,null,{"$f":"IF(AGENDA!C206<>\"\",AGENDA!C206,\"\")","v":""}]
[null,null,null,null,null,null,null,null,null,null,null,null,null,null,null,{"$f":"IF(AGENDA!C207<>\"\",AGENDA!C207,\"\")","v":""}]
[null,null,null,null,null,null,null,null,null,null,null,null,null,null,null,{"$f":"IF(AGENDA!C208<>\"\",AGENDA!C208,\"\")","v":""}]
[null,null,null,null,null,null,null,null,null,null,null,null,null,null,null,{"$f":"IF(AGENDA!C209<>\"\",AGENDA!C209,\"\")","v":""}]
[null,null,null,null,null,null,null,null,null,null,null,null,null,null,null,{"$f":"IF(AGENDA!C210<>\"\",AGENDA!C210,\"\")","v":""}]
[null,null,null,null,null,null,null,null,null,null,null,null,null,null,null,{"$f":"IF(AGENDA!C211<>\"\",AGENDA!C211,\"\")","v":""}]
[null,null,null,null,null,null,null,null,null,null,null,null,null,null,null,{"$f":"IF(AGENDA!C212<>\"\",AGENDA!C212,\"\")","v":""}]
[null,null,null,null,null,null,null,null,null,null,null,null,null,null,null,{"$f":"IF(AGENDA!C213<>\"\",AGENDA!C213,\"\")","v":""}]
[null,null,null,null,null,null,null,null,null,null,null,null,null,null,null,{"$f":"IF(AGENDA!C214<>\"\",AGENDA!C214,\"\")","v":""}]
[null,null,null,null,null,null,null,null,null,null,null,null,null,null,null,{"$f":"IF(AGENDA!C215<>\"\",AGENDA!C215,\"\")","v":""}]
[null,null,null,null,null,null,null,null,null,null,null,null,null,null,null,{"$f":"IF(AGENDA!C216<>\"\",AGENDA!C216,\"\")","v":""}]
[null,null,null,null,null,null,null,null,null,null,null,null,null,null,null,{"$f":"IF(AGENDA!C217<>\"\",AGENDA!C217,\"\")","v":""}]
[null,null,null,null,null,null,null,null,null,null,null,null,null,null,null,{"$f":"IF(AGENDA!C218<>\"\",AGENDA!C218,\"\")","v":""}]
[null,null,null,null,null,null,null,null,null,null,null,null,null,null,null,{"$f":"IF(AGENDA!C219<>\"\",AGENDA!C219,\"\")","v":""}]
[null,null,null,null,null,null,null,null,null,null,null,null,null,null,null,{"$f":"IF(AGENDA!C220<>\"\",AGENDA!C220,\"\")","v":""}]
[null,null,null,null,null,null,null,null,null,null,null,null,null,null,null,{"$f":"IF(AGENDA!C221<>\"\",AGENDA!C221,\"\")","v":""}]
[null,null,null,null,null,null,null,null,null,null,null,null,null,null,null,{"$f":"IF(AGENDA!C222<>\"\",AGENDA!C222,\"\")","v":""}]
[null,null,null,null,null,null,null,null,null,null,null,null,null,null,null,{"$f":"IF(AGENDA!C223<>\"\",AGENDA!C223,\"\")","v":""}]
[null,null,null,null,null,null,null,null,null,null,null,null,null,null,null,{"$f":"IF(AGENDA!C224<>\"\",AGENDA!C224,\"\")","v":""}]
[null,null,null,null,null,null,null,null,null,null,null,null,null,null,null,{"$f":"IF(AGENDA!C225<>\"\",AGENDA!C225,\"\")","v":""}]
[null,null,null,null,null,null,null,null,null,null,null,null,null,null,null,{"$f":"IF(AGENDA!C226<>\"\",AGENDA!C226,\"\")","v":""}]
[null,null,null,null,null,null,null,null,null,null,null,null,null,null,null,{"$f":"IF(AGENDA!C227<>\"\",AGENDA!C227,\"\")","v":""}]
[null,null,null,null,null,null,null,null,null,null,null,null,null,null,null,{"$f":"IF(AGENDA!C228<>\"\",AGENDA!C228,\"\")","v":""}]
[null,null,null,null,null,null,null,null,null,null,null,null,null,null,null,{"$f":"IF(AGENDA!C229<>\"\",AGENDA!C229,\"\")","v":""}]
[null,null,null,null,null,null,null,null,null,null,null,null,null,null,null,{"$f":"IF(AGENDA!C230<>\"\",AGENDA!C230,\"\")","v":""}]
[null,null,null,null,null,null,null,null,null,null,null,null,null,null,null,{"$f":"IF(AGENDA!C231<>\"\",AGENDA!C231,\"\")","v":""}]
[null,null,null,null,null,null,null,null,null,null,null,null,null,null,null,{"$f":"IF(AGENDA!C232<>\"\",AGENDA!C232,\"\")","v":""}]
[null,null,null,null,null,null,null,null,null,null,null,null,null,null,null,{"$f":"IF(AGENDA!C233<>\"\",AGENDA!C233,\"\")","v":""}]
[null,null,null,null,null,null,null,null,null,null,null,null,null,null,null,{"$f":"IF(AGENDA!C234<>\"\",AGENDA!C234,\"\")","v":""}]
[null,null,null,null,null,null,null,null,null,null,null,null,null,null,null,{"$f":"IF(AGENDA!C235<>\"\",AGENDA!C235,\"\")","v":""}]
[null,null,null,null,null,null,null,null,null,null,null,null,null,null,null,{"$f":"IF(AGENDA!C236<>\"\",AGENDA!C236,\"\")","v":""}]
[null,null,null,null,null,null,null,null,null,null,null,null,null,null,null,{"$f":"IF(AGENDA!C237<>\"\",AGENDA!C237,\"\")","v":""}]
[null,null,null,null,null,null,null,null,null,null,null,null,null,null,null,{"$f":"IF(AGENDA!C238<>\"\",AGENDA!C238,\"\")","v":""}]
[null,null,null,null,null,null,null,null,null,null,null,null,null,null,null,{"$f":"IF(AGENDA!C239<>\"\",AGENDA!C239,\"\")","v":""}]
[null,null,null,null,null,null,null,null,null,null,null,null,null,null,null,{"$f":"IF(AGENDA!C240<>\"\",AGENDA!C240,\"\")","v":""}]
[null,null,null,null,null,null,null,null,null,null,null,null,null,null,null,{"$f":"IF(AGENDA!C241<>\"\",AGENDA!C241,\"\")","v":""}]
[null,null,null,null,null,null,null,null,null,null,null,null,null,null,null,{"$f":"IF(AGENDA!C242<>\"\",AGENDA!C242,\"\")","v":""}]
[null,null,null,null,null,null,null,null,null,null,null,null,null,null,null,{"$f":"IF(AGENDA!C243<>\"\",AGENDA!C243,\"\")","v":""}]
[null,null,null,null,null,null,null,null,null,null,null,null,null,null,null,{"$f":"IF(AGENDA!C244<>\"\",AGENDA!C244,\"\")","v":""}]
[null,null,null,null,null,null,null,null,null,null,null,null,null,null,null,{"$f":"IF(AGENDA!C245<>\"\",AGENDA!C245,\"\")","v":""}]
[null,null,null,null,null,null,null,null,null,null,null,null,null,null,null,{"$f":"IF(AGENDA!C246<>\"\",AGENDA!C246,\"\")","v":""}]
[null,null,null,null,null,null,null,null,null,null,null,null,null,null,null,{"$f":"IF(AGENDA!C247<>\"\",AGENDA!C247,\"\")","v":""}]
[null,null,null,null,null,null,null,null,null,null,null,null,null,null,null,{"$f":"IF(AGENDA!C248<>\"\",AGENDA!C248,\"\")","v":""}]
[null,null,null,null,null,null,null,null,null,null,null,null,null,null,null,{"$f":"IF(AGENDA!C249<>\"\",AGENDA!C249,\"\")","v":""}]
[null,null,null,null,null,null,null,null,null,null,null,null,null,null,null,{"$f":"IF(AGENDA!C250<>\"\",AGENDA!C250,\"\")","v":""}]
[null,null,null,null,null,null,null,null,null,null,null,null,null,null,null,{"$f":"IF(AGENDA!C251<>\"\",AGENDA!C251,\"\")","v":""}]
[null,null,null,null,null,null,null,null,null,null,null,null,null,null,null,{"$f":"IF(AGENDA!C252<>\"\",AGENDA!C252,\"\")","v":""}]
[null,null,null,null,null,null,null,null,null,null,null,null,null,null,null,{"$f":"IF(AGENDA!C253<>\"\",AGENDA!C253,\"\")","v":""}]
[null,null,null,null,null,null,null,null,null,null,null,null,null,null,null,{"$f":"IF(AGENDA!C254<>\"\",AGENDA!C254,\"\")","v":""}]
[null,null,null,null,null,null,null,null,null,null,null,null,null,null,null,{"$f":"IF(AGENDA!C255<>\"\",AGENDA!C255,\"\")","v":""}]
[null,null,null,null,null,null,null,null,null,null,null,null,null,null,null,{"$f":"IF(AGENDA!C256<>\"\",AGENDA!C256,\"\")","v":""}]
[null,null,null,null,null,null,null,null,null,null,null,null,null,null,null,{"$f":"IF(AGENDA!C257<>\"\",AGENDA!C257,\"\")","v":""}]
[null,null,null,null,null,null,null,null,null,null,null,null,null,null,null,{"$f":"IF(AGENDA!C258<>\"\",AGENDA!C258,\"\")","v":""}]
[null,null,null,null,null,null,null,null,null,null,null,null,null,null,null,{"$f":"IF(AGENDA!C259<>\"\",AGENDA!C259,\"\")","v":""}]
[null,null,null,null,null,null,null,null,null,null,null,null,null,null,null,{"$f":"IF(AGENDA!C260<>\"\",AGENDA!C260,\"\")","v":""}]
[null,null,null,null,null,null,null,null,null,null,null,null,null,null,null,{"$f":"IF(AGENDA!C261<>\"\",AGENDA!C261,\"\")","v":""}]
[null,null,null,null,null,null,null,null,null,null,null,null,null,null,null,{"$f":"IF(AGENDA!C262<>\"\",AGENDA!C262,\"\")","v":""}]
[null,null,null,null,null,null,null,null,null,null,null,null,null,null,null,{"$f":"IF(AGENDA!C263<>\"\",AGENDA!C263,\"\")","v":""}]
[null,null,null,null,null,null,null,null,null,null,null,null,null,null,null,{"$f":"IF(AGENDA!C264<>\"\",AGENDA!C264,\"\")","v":""}]
[null,null,null,null,null,null,null,null,null,null,null,null,null,null,null,{"$f":"IF(AGENDA!C265<>\"\",AGENDA!C265,\"\")","v":""}]
[null,null,null,null,null,null,null,null,null,null,null,null,null,null,null,{"$f":"IF(AGENDA!C266<>\"\",AGENDA!C266,\"\")","v":""}]
[null,null,null,null,null,null,null,null,null,null,null,null,null,null,null,{"$f":"IF(AGENDA!C267<>\"\",AGENDA!C267,\"\")","v":""}]
[null,null,null,null,null,null,null,null,null,null,null,null,null,null,null,{"$f":"IF(AGENDA!C268<>\"\",AGENDA!C268,\"\")","v":""}]
[null,null,null,null,null,null,null,null,null,null,null,null,null,null,null,{"$f":"IF(AGENDA!C269<>\"\",AGENDA!C269,\"\")","v":""}]
[null,null,null,null,null,null,null,null,null,null,null,null,null,null,null,{"$f":"IF(AGENDA!C270<>\"\",AGENDA!C270,\"\")","v":""}]
[null,null,null,null,null,null,null,null,null,null,null,null,null,null,null,{"$f":"IF(AGENDA!C271<>\"\",AGENDA!C271,\"\")","v":""}]
[null,null,null,null,null,null,null,null,null,null,null,null,null,null,null,{"$f":"IF(AGENDA!C272<>\"\",AGENDA!C272,\"\")","v":""}]
[null,null,null,null,null,null,null,null,null,null,null,null,null,null,null,{"$f":"IF(AGENDA!C273<>\"\",AGENDA!C273,\"\")","v":""}]
[null,null,null,null,null,null,null,null,null,null,null,null,null,null,null,{"$f":"IF(AGENDA!C274<>\"\",AGENDA!C274,\"\")","v":""}]
[null,null,null,null,null,null,null,null,null,null,null,null,null,null,null,{"$f":"IF(AGENDA!C275<>\"\",AGENDA!C275,\"\")","v":""}]
[null,null,null,null,null,null,null,null,null,null,null,null,null,null,null,{"$f":"IF(AGENDA!C276<>\"\",AGENDA!C276,\"\")","v":""}]
[null,null,null,null,null,null,null,null,null,null,null,null,null,null,null,{"$f":"IF(AGENDA!C277<>\"\",AGENDA!C277,\"\")","v":""}]
[null,null,null,null,null,null,null,null,null,null,null,null,null,null,null,{"$f":"IF(AGENDA!C278<>\"\",AGENDA!C278,\"\")","v":""}]
[null,null,null,null,null,null,null,null,null,null,null,null,null,null,null,{"$f":"IF(AGENDA!C279<>\"\",AGENDA!C279,\"\")","v":""}]
[null,null,null,null,null,null,null,null,null,null,null,null,null,null,null,{"$f":"IF(AGENDA!C280<>\"\",AGENDA!C280,\"\")","v":""}]
[null,null,null,null,null,null,null,null,null,null,null,null,null,null,null,{"$f":"IF(AGENDA!C281<>\"\",AGENDA!C281,\"\")","v":""}]
[null,null,null,null,null,null,null,null,null,null,null,null,null,null,null,{"$f":"IF(AGENDA!C282<>\"\",AGENDA!C282,\"\")","v":""}]
[null,null,null,null,null,null,null,null,null,null,null,null,null,null,null,{"$f":"IF(AGENDA!C283<>\"\",AGENDA!C283,\"\")","v":""}]
[null,null,null,null,null,null,null,null,null,null,null,null,null,null,null,{"$f":"IF(AGENDA!C284<>\"\",AGENDA!C284,\"\")","v":""}]
[null,null,null,null,null,null,null,null,null,null,null,null,null,null,null,{"$f":"IF(AGENDA!C285<>\"\",AGENDA!C285,\"\")","v":""}]
[null,null,null,null,null,null,null,null,null,null,null,null,null,null,null,{"$f":"IF(AGENDA!C286<>\"\",AGENDA!C286,\"\")","v":""}]
[null,null,null,null,null,null,null,null,null,null,null,null,null,null,null,{"$f":"IF(AGENDA!C287<>\"\",AGENDA!C287,\"\")","v":""}]
[null,null,null,null,null,null,null,null,null,null,null,null,null,null,null,{"$f":"IF(AGENDA!C288<>\"\",AGENDA!C288,\"\")","v":""}]
[null,null,null,null,null,null,null,null,null,null,null,null,null,null,null,{"$f":"IF(AGENDA!C289<>\"\",AGENDA!C289,\"\")","v":""}]
[null,null,null,null,null,null,null,null,null,null,null,null,null,null,null,{"$f":"IF(AGENDA!C290<>\"\",AGENDA!C290,\"\")","v":""}]
[null,null,null,null,null,null,null,null,null,null,null,null,null,null,null,{"$f":"IF(AGENDA!C291<>\"\",AGENDA!C291,\"\")","v":""}]
[null,null,null,null,null,null,null,null,null,null,null,null,null,null,null,{"$f":"IF(AGENDA!C292<>\"\",AGENDA!C292,\"\")","v":""}]
[null,null,null,null,null,null,null,null,null,null,null,null,null,null,null,{"$f":"IF(AGENDA!C293<>\"\",AGENDA!C293,\"\")","v":""}]
[null,null,null,null,null,null,null,null,null,null,null,null,null,null,null,{"$f":"IF(AGENDA!C294<>\"\",AGENDA!C294,\"\")","v":""}]
[null,null,null,null,null,null,null,null,null,null,null,null,null,null,null,{"$f":"IF(AGENDA!C295<>\"\",AGENDA!C295,\"\")","v":""}]
[null,null,null,null,null,null,null,null,null,null,null,null,null,null,null,{"$f":"IF(AGENDA!C296<>\"\",AGENDA!C296,\"\")","v":""}]
[null,null,null,null,null,null,null,null,null,null,null,null,null,null,null,{"$f":"IF(AGENDA!C297<>\"\",AGENDA!C297,\"\")","v":""}]
[null,null,null,null,null,null,null,null,null,null,null,null,null,null,null,{"$f":"IF(AGENDA!C298<>\"\",AGENDA!C298,\"\")","v":""}]
[null,null,null,null,null,null,null,null,null,null,null,null,null,null,null,{"$f":"IF(AGENDA!C299<>\"\",AGENDA!C299,\"\")","v":""}]
[null,null,null,null,null,null,null,null,null,null,null,null,null,null,null,{"$f":"IF(AGENDA!C300<>\"\",AGENDA!C300,\"\")","v":""}]
[null,null,null,null,null,null,null,null,null,null,null,null,null,null,null,{"$f":"IF(AGENDA!C301<>\"\",AGENDA!C301,\"\")","v":""}]
[null,null,null,null,null,null,null,null,null,null,null,null,null,null,null,{"$f":"IF(AGENDA!C302<>\"\",AGENDA!C302,\"\")","v":""}]
[null,null,null,null,null,null,null,null,null,null,null,null,null,null,null,{"$f":"IF(AGENDA!C303<>\"\",AGENDA!C303,\"\")","v":""}]
[null,null,null,null,null,null,null,null,null,null,null,null,null,null,null,{"$f":"IF(AGENDA!C304<>\"\",AGENDA!C304,\"\")","v":""}]
[null,null,null,null,null,null,null,null,null,null,null,null,null,null,null,{"$f":"IF(AGENDA!C305<>\"\",AGENDA!C305,\"\")","v":""}]
[null,null,null,null,null,null,null,null,null,null,null,null,null,null,null,{"$f":"IF(AGENDA!C306<>\"\",AGENDA!C306,\"\")","v":""}]
[null,null,null,null,null,null,null,null,null,null,null,null,null,null,null,{"$f":"IF(AGENDA!C307<>\"\",AGENDA!C307,\"\")","v":""}]
[null,null,null,null,null,null,null,null,null,null,null,null,null,null,null,{"$f":"IF(AGENDA!C308<>\"\",AGENDA!C308,\"\")","v":""}]
[null,null,null,null,null,null,null,null,null,null,null,null,null,null,null,{"$f":"IF(AGENDA!C309<>\"\",AGENDA!C309,\"\")","v":""}]
[null,null,null,null,null,null,null,null,null,null,null,null,null,null,null,{"$f":"IF(AGENDA!C310<>\"\",AGENDA!C310,\"\")","v":""}]
[null,null,null,null,null,null,null,null,null,null,null,null,null,null,null,{"$f":"IF(AGENDA!C311<>\"\",AGENDA!C311,\"\")","v":""}]
[null,null,null,null,null,null,null,null,null,null,null,null,null,null,null,{"$f":"IF(AGENDA!C312<>\"\",AGENDA!C312,\"\")","v":""}]
[null,null,null,null,null,null,null,null,null,null,null,null,null,null,null,{"$f":"IF(AGENDA!C313<>\"\",AGENDA!C313,\"\")","v":""}]
[null,null,null,null,null,null,null,null,null,null,null,null,null,null,null,{"$f":"IF(AGENDA!C314<>\"\",AGENDA!C314,\"\")","v":""}]
[null,null,null,null,null,null,null,null,null,null,null,null,null,null,null,{"$f":"IF(AGENDA!C315<>\"\",AGENDA!C315,\"\")","v":""}]
[null,null,null,null,null,null,null,null,null,null,null,null,null,null,null,{"$f":"IF(AGENDA!C316<>\"\",AGENDA!C316,\"\")","v":""}]
[null,null,null,null,null,null,null,null,null,null,null,null,null,null,null,{"$f":"IF(AGENDA!C317<>\"\",AGENDA!C317,\"\")","v":""}]
[null,null,null,null,null,null,null,null,null,null,null,null,null,null,null,{"$f":"IF(AGENDA!C318<>\"\",AGENDA!C318,\"\")","v":""}]
[null,null,null,null,null,null,null,null,null,null,null,null,null,null,null,{"$f":"IF(AGENDA!C319<>\"\",AGENDA!C319,\"\")","v":""}]
[null,null,null,null,null,null,null,null,null,null,null,null,null,null,null,{"$f":"IF(AGENDA!C320<>\"\",AGENDA!C320,\"\")","v":""}]
[null,null,null,null,null,null,null,null,null,null,null,null,null,null,null,{"$f":"IF(AGENDA!C321<>\"\",AGENDA!C321,\"\")","v":""}]
[null,null,null,null,null,null,null,null,null,null,null,null,null,null,null,{"$f":"IF(AGENDA!C322<>\"\",AGENDA!C322,\"\")","v":""}]
[null,null,null,null,null,null,null,null,null,null,null,null,null,null,null,{"$f":"IF(AGENDA!C323<>\"\",AGENDA!C323,\"\")","v":""}]
[null,null,null,null,null,null,null,null,null,null,null,null,null,null,null,{"$f":"IF(AGENDA!C324<>\"\",AGENDA!C324,\"\")","v":""}]
[null,null,null,null,null,null,null,null,null,null,null,null,null,null,null,{"$f":"IF(AGENDA!C325<>\"\",AGENDA!C325,\"\")","v":""}]
[null,null,null,null,null,null,null,null,null,null,null,null,null,null,null,{"$f":"IF(AGENDA!C326<>\"\",AGENDA!C326,\"\")","v":""}]
[null,null,null,null,null,null,null,null,null,null,null,null,null,null,null,{"$f":"IF(AGENDA!C327<>\"\",AGENDA!C327,\"\")","v":""}]
[null,null,null,null,null,null,null,null,null,null,null,null,null,null,null,{"$f":"IF(AGENDA!C328<>\"\",AGENDA!C328,\"\")","v":""}]
[null,null,null,null,null,null,null,null,null,null,null,null,null,null,null,{"$f":"IF(AGENDA!C329<>\"\",AGENDA!C329,\"\")","v":""}]
[null,null,null,null,null,null,null,null,null,null,null,null,null,null,null,{"$f":"IF(AGENDA!C330<>\"\",AGENDA!C330,\"\")","v":""}]
[null,null,null,null,null,null,null,null,null,null,null,null,null,null,null,{"$f":"IF(AGENDA!C331<>\"\",AGENDA!C331,\"\")","v":""}]
[null,null,null,null,null,null,null,null,null,null,null,null,null,null,null,{"$f":"IF(AGENDA!C332<>\"\",AGENDA!C332,\"\")","v":""}]
[null,null,null,null,null,null,null,null,null,null,null,null,null,null,null,{"$f":"IF(AGENDA!C333<>\"\",AGENDA!C333,\"\")","v":""}]
[null,null,null,null,null,null,null,null,null,null,null,null,null,null,null,{"$f":"IF(AGENDA!C334<>\"\",AGENDA!C334,\"\")","v":""}]
[null,null,null,null,null,null,null,null,null,null,null,null,null,null,null,{"$f":"IF(AGENDA!C335<>\"\",AGENDA!C335,\"\")","v":""}]
[null,null,null,null,null,null,null,null,null,null,null,null,null,null,null,{"$f":"IF(AGENDA!C336<>\"\",AGENDA!C336,\"\")","v":""}]
[null,null,null,null,null,null,null,null,null,null,null,null,null,null,null,{"$f":"IF(AGENDA!C337<>\"\",AGENDA!C337,\"\")","v":""}]
[null,null,null,null,null,null,null,null,null,null,null,null,null,null,null,{"$f":"IF(AGENDA!C338<>\"\",AGENDA!C338,\"\")","v":""}]
[null,null,null,null,null,null,null,null,null,null,null,null,null,null,null,{"$f":"IF(AGENDA!C339<>\"\",AGENDA!C339,\"\")","v":""}]
[null,null,null,null,null,null,null,null,null,null,null,null,null,null,null,{"$f":"IF(AGENDA!C340<>\"\",AGENDA!C340,\"\")","v":""}]
[null,null,null,null,null,null,null,null,null,null,null,null,null,null,null,{"$f":"IF(AGENDA!C341<>\"\",AGENDA!C341,\"\")","v":""}]
[null,null,null,null,null,null,null,null,null,null,null,null,null,null,null,{"$f":"IF(AGENDA!C342<>\"\",AGENDA!C342,\"\")","v":""}]
[null,null,null,null,null,null,null,null,null,null,null,null,null,null,null,{"$f":"IF(AGENDA!C343<>\"\",AGENDA!C343,\"\")","v":""}]
[null,null,null,null,null,null,null,null,null,null,null,null,null,null,null,{"$f":"IF(AGENDA!C344<>\"\",AGENDA!C344,\"\")","v":""}]
[null,null,null,null,null,null,null,null,null,null,null,null,null,null,null,{"$f":"IF(AGENDA!C345<>\"\",AGENDA!C345,\"\")","v":""}]
[null,null,null,null,null,null,null,null,null,null,null,null,null,null,null,{"$f":"IF(AGENDA!C346<>\"\",AGENDA!C346,\"\")","v":""}]
[null,null,null,null,null,null,null,null,null,null,null,null,null,null,null,{"$f":"IF(AGENDA!C347<>\"\",AGENDA!C347,\"\")","v":""}]
[null,null,null,null,null,null,null,null,null,null,null,null,null,null,null,{"$f":"IF(AGENDA!C348<>\"\",AGENDA!C348,\"\")","v":""}]
[null,null,null,null,null,null,null,null,null,null,null,null,null,null,null,{"$f":"IF(AGENDA!C349<>\"\",AGENDA!C349,\"\")","v":""}]
[null,null,null,null,null,null,null,null,null,null,null,null,null,null,null,{"$f":"IF(AGENDA!C350<>\"\",AGENDA!C350,\"\")","v":""}]
[null,null,null,null,null,null,null,null,null,null,null,null,null,null,null,{"$f":"IF(AGENDA!C351<>\"\",AGENDA!C351,\"\")","v":""}]
[null,null,null,null,null,null,null,null,null,null,null,null,null,null,null,{"$f":"IF(AGENDA!C352<>\"\",AGENDA!C352,\"\")","v":""}]
[null,null,null,null,null,null,null,null,null,null,null,null,null,null,null,{"$f":"IF(AGENDA!C353<>\"\",AGENDA!C353,\"\")","v":""}]
[null,null,null,null,null,null,null,null,null,null,null,null,null,null,null,{"$f":"IF(AGENDA!C354<>\"\",AGENDA!C354,\"\")","v":""}]
[null,null,null,null,null,null,null,null,null,null,null,null,null,null,null,{"$f":"IF(AGENDA!C355<>\"\",AGENDA!C355,\"\")","v":""}]
[null,null,null,null,null,null,null,null,null,null,null,null,null,null,null,{"$f":"IF(AGENDA!C356<>\"\",AGENDA!C356,\"\")","v":""}]
[null,null,null,null,null,null,null,null,null,null,null,null,null,null,null,{"$f":"IF(AGENDA!C357<>\"\",AGENDA!C357,\"\")","v":""}]
[null,null,null,null,null,null,null,null,null,null,null,null,null,null,null,{"$f":"IF(AGENDA!C358<>\"\",AGENDA!C358,\"\")","v":""}]
[null,null,null,null,null,null,null,null,null,null,null,null,null,null,null,{"$f":"IF(AGENDA!C359<>\"\",AGENDA!C359,\"\")","v":""}]
[null,null,null,null,null,null,null,null,null,null,null,null,null,null,null,{"$f":"IF(AGENDA!C360<>\"\",AGENDA!C360,\"\")","v":""}]
[null,null,null,null,null,null,null,null,null,null,null,null,null,null,null,{"$f":"IF(AGENDA!C361<>\"\",AGENDA!C361,\"\")","v":""}]
[null,null,null,null,null,null,null,null,null,null,null,null,null,null,null,{"$f":"IF(AGENDA!C362<>\"\",AGENDA!C362,\"\")","v":""}]
[null,null,null,null,null,null,null,null,null,null,null,null,null,null,null,{"$f":"IF(AGENDA!C363<>\"\",AGENDA!C363,\"\")","v":""}]
[null,null,null,null,null,null,null,null,null,null,null,null,null,null,null,{"$f":"IF(AGENDA!C364<>\"\",AGENDA!C364,\"\")","v":""}]
[null,null,null,null,null,null,null,null,null,null,null,null,null,null,null,{"$f":"IF(AGENDA!C365<>\"\",AGENDA!C365,\"\")","v":""}]
[null,null,null,null,null,null,null,null,null,null,null,null,null,null,null,{"$f":"IF(AGENDA!C366<>\"\",AGENDA!C366,\"\")","v":""}]
[null,null,null,null,null,null,null,null,null,null,null,null,null,null,null,{"$f":"IF(AGENDA!C367<>\"\",AGENDA!C367,\"\")","v":""}]
[null,null,null,null,null,null,null,null,null,null,null,null,null,null,null,{"$f":"IF(AGENDA!C368<>\"\",AGENDA!C368,\"\")","v":""}]
[null,null,null,null,null,null,null,null,null,null,null,null,null,null,null,{"$f":"IF(AGENDA!C369<>\"\",AGENDA!C369,\"\")","v":""}]
[null,null,null,null,null,null,null,null,null,null,null,null,null,null,null,{"$f":"IF(AGENDA!C370<>\"\",AGENDA!C370,\"\")","v":""}]
[null,null,null,null,null,null,null,null,null,null,null,null,null,null,null,{"$f":"IF(AGENDA!C371<>\"\",AGENDA!C371,\"\")","v":""}]
[null,null,null,null,null,null,null,null,null,null,null,null,null,null,null,{"$f":"IF(AGENDA!C372<>\"\",AGENDA!C372,\"\")","v":""}]
[null,null,null,null,null,null,null,null,null,null,null,null,null,null,null,{"$f":"IF(AGENDA!C373<>\"\",AGENDA!C373,\"\")","v":""}]
[null,null,null,null,null,null,null,null,null,null,null,null,null,null,null,{"$f":"IF(AGENDA!C374<>\"\",AGENDA!C374,\"\")","v":""}]
[null,null,null,null,null,null,null,null,null,null,null,null,null,null,null,{"$f":"IF(AGENDA!C375<>\"\",AGENDA!C375,\"\")","v":""}]
[null,null,null,null,null,null,null,null,null,null,null,null,null,null,null,{"$f":"IF(AGENDA!C376<>\"\",AGENDA!C376,\"\")","v":""}]
[null,null,null,null,null,null,null,null,null,null,null,null,null,null,null,{"$f":"IF(AGENDA!C377<>\"\",AGENDA!C377,\"\")","v":""}]
[null,null,null,null,null,null,null,null,null,null,null,null,null,null,null,{"$f":"IF(AGENDA!C378<>\"\",AGENDA!C378,\"\")","v":""}]
[null,null,null,null,null,null,null,null,null,null,null,null,null,null,null,{"$f":"IF(AGENDA!C379<>\"\",AGENDA!C379,\"\")","v":""}]
[null,null,null,null,null,null,null,null,null,null,null,null,null,null,null,{"$f":"IF(AGENDA!C380<>\"\",AGENDA!C380,\"\")","v":""}]
[null,null,null,null,null,null,null,null,null,null,null,null,null,null,null,{"$f":"IF(AGENDA!C381<>\"\",AGENDA!C381,\"\")","v":""}]
[null,null,null,null,null,null,null,null,null,null,null,null,null,null,null,{"$f":"IF(AGENDA!C382<>\"\",AGENDA!C382,\"\")","v":""}]
[null,null,null,null,null,null,null,null,null,null,null,null,null,null,null,{"$f":"IF(AGENDA!C383<>\"\",AGENDA!C383,\"\")","v":""}]
[null,null,null,null,null,null,null,null,null,null,null,null,null,null,null,{"$f":"IF(AGENDA!C384<>\"\",AGENDA!C384,\"\")","v":""}]
[null,null,null,null,null,null,null,null,null,null,null,null,null,null,null,{"$f":"IF(AGENDA!C385<>\"\",AGENDA!C385,\"\")","v":""}]
[null,null,null,null,null,null,null,null,null,null,null,null,null,null,null,{"$f":"IF(AGENDA!C386<>\"\",AGENDA!C386,\"\")","v":""}]
[null,null,null,null,null,null,null,null,null,null,null,null,null,null,null,{"$f":"IF(AGENDA!C387<>\"\",AGENDA!C387,\"\")","v":""}]
[null,null,null,null,null,null,null,null,null,null,null,null,null,null,null,{"$f":"IF(AGENDA!C388<>\"\",AGENDA!C388,\"\")","v":""}]
[null,null,null,null,null,null,null,null,null,null,null,null,null,null,null,{"$f":"IF(AGENDA!C389<>\"\",AGENDA!C389,\"\")","v":""}]
[null,null,null,null,null,null,null,null,null,null,null,null,null,null,null,{"$f":"IF(AGENDA!C390<>\"\",AGENDA!C390,\"\")","v":""}]
[null,null,null,null,null,null,null,null,null,null,null,null,null,null,null,{"$f":"IF(AGENDA!C391<>\"\",AGENDA!C391,\"\")","v":""}]
[null,null,null,null,null,null,null,null,null,null,null,null,null,null,null,{"$f":"IF(AGENDA!C392<>\"\",AGENDA!C392,\"\")","v":""}]
[null,null,null,null,null,null,null,null,null,null,null,null,null,null,null,{"$f":"IF(AGENDA!C393<>\"\",AGENDA!C393,\"\")","v":""}]
[null,null,null,null,null,null,null,null,null,null,null,null,null,null,null,{"$f":"IF(AGENDA!C394<>\"\",AGENDA!C394,\"\")","v":""}]
[null,null,null,null,null,null,null,null,null,null,null,null,null,null,null,{"$f":"IF(AGENDA!C395<>\"\",AGENDA!C395,\"\")","v":""}]
[null,null,null,null,null,null,null,null,null,null,null,null,null,null,null,{"$f":"IF(AGENDA!C396<>\"\",AGENDA!C396,\"\")","v":""}]
[null,null,null,null,null,null,null,null,null,null,null,null,null,null,null,{"$f":"IF(AGENDA!C397<>\"\",AGENDA!C397,\"\")","v":""}]
[null,null,null,null,null,null,null,null,null,null,null,null,null,null,null,{"$f":"IF(AGENDA!C398<>\"\",AGENDA!C398,\"\")","v":""}]
[null,null,null,null,null,null,null,null,null,null,null,null,null,null,null,{"$f":"IF(AGENDA!C399<>\"\",AGENDA!C399,\"\")","v":""}]
[null,null,null,null,null,null,null,null,null,null,null,null,null,null,null,{"$f":"IF(AGENDA!C400<>\"\",AGENDA!C400,\"\")","v":""}]
[null,null,null,null,null,null,null,null,null,null,null,null,null,null,null,{"$f":"IF(AGENDA!C401<>\"\",AGENDA!C401,\"\")","v":""}]
[null,null,null,null,null,null,null,null,null,null,null,null,null,null,null,{"$f":"IF(AGENDA!C402<>\"\",AGENDA!C402,\"\")","v":""}]
[null,null,null,null,null,null,null,null,null,null,null,null,null,null,null,{"$f":"IF(AGENDA!C403<>\"\",AGENDA!C403,\"\")","v":""}]
[null,null,null,null,null,null,null,null,null,null,null,null,null,null,null,{"$f":"IF(AGENDA!C404<>\"\",AGENDA!C404,\"\")","v":""}]
[null,null,null,null,null,null,null,null,null,null,null,null,null,null,null,{"$f":"IF(AGENDA!C405<>\"\",AGENDA!C405,\"\")","v":""}]
[null,null,null,null,null,null,null,null,null,null,null,null,null,null,null,{"$f":"IF(AGENDA!C406<>\"\",AGENDA!C406,\"\")","v":""}]
[null,null,null,null,null,null,null,null,null,null,null,null,null,null,null,{"$f":"IF(AGENDA!C407<>\"\",AGENDA!C407,\"\")","v":""}]
[null,null,null,null,null,null,null,null,null,null,null,null,null,null,null,{"$f":"IF(AGENDA!C408<>\"\",AGENDA!C408,\"\")","v":""}]
[null,null,null,null,null,null,null,null,null,null,null,null,null,null,null,{"$f":"IF(AGENDA!C409<>\"\",AGENDA!C409,\"\")","v":""}]
[null,null,null,null,null,null,null,null,null,null,null,null,null,null,null,{"$f":"IF(AGENDA!C410<>\"\",AGENDA!C410,\"\")","v":""}]
[null,null,null,null,null,null,null,null,null,null,null,null,null,null,null,{"$f":"IF(AGENDA!C411<>\"\",AGENDA!C411,\"\")","v":""}]
[null,null,null,null,null,null,null,null,null,null,null,null,null,null,null,{"$f":"IF(AGENDA!C412<>\"\",AGENDA!C412,\"\")","v":""}]
[null,null,null,null,null,null,null,null,null,null,null,null,null,null,null,{"$f":"IF(AGENDA!C413<>\"\",AGENDA!C413,\"\")","v":""}]
[null,null,null,null,null,null,null,null,null,null,null,null,null,null,null,{"$f":"IF(AGENDA!C414<>\"\",AGENDA!C414,\"\")","v":""}]
[null,null,null,null,null,null,null,null,null,null,null,null,null,null,null,{"$f":"IF(AGENDA!C415<>\"\",AGENDA!C415,\"\")","v":""}]
[null,null,null,null,null,null,null,null,null,null,null,null,null,null,null,{"$f":"IF(AGENDA!C416<>\"\",AGENDA!C416,\"\")","v":""}]
[null,null,null,null,null,null,null,null,null,null,null,null,null,null,null,{"$f":"IF(AGENDA!C417<>\"\",AGENDA!C417,\"\")","v":""}]
[null,null,null,null,null,null,null,null,null,null,null,null,null,null,null,{"$f":"IF(AGENDA!C418<>\"\",AGENDA!C418,\"\")","v":""}]
[null,null,null,null,null,null,null,null,null,null,null,null,null,null,null,{"$f":"IF(AGENDA!C419<>\"\",AGENDA!C419,\"\")","v":""}]
[null,null,null,null,null,null,null,null,null,null,null,null,null,null,null,{"$f":"IF(AGENDA!C420<>\"\",AGENDA!C420,\"\")","v":""}]
[null,null,null,null,null,null,null,null,null,null,null,null,null,null,null,{"$f":"IF(AGENDA!C421<>\"\",AGENDA!C421,\"\")","v":""}]
[null,null,null,null,null,null,null,null,null,null,null,null,null,null,null,{"$f":"IF(AGENDA!C422<>\"\",AGENDA!C422,\"\")","v":""}]
[null,null,null,null,null,null,null,null,null,null,null,null,null,null,null,{"$f":"IF(AGENDA!C423<>\"\",AGENDA!C423,\"\")","v":""}]
[null,null,null,null,null,null,null,null,null,null,null,null,null,null,null,{"$f":"IF(AGENDA!C424<>\"\",AGENDA!C424,\"\")","v":""}]
[null,null,null,null,null,null,null,null,null,null,null,null,null,null,null,{"$f":"IF(AGENDA!C425<>\"\",AGENDA!C425,\"\")","v":""}]
[null,null,null,null,null,null,null,null,null,null,null,null,null,null,null,{"$f":"IF(AGENDA!C426<>\"\",AGENDA!C426,\"\")","v":""}]
[null,null,null,null,null,null,null,null,null,null,null,null,null,null,null,{"$f":"IF(AGENDA!C427<>\"\",AGENDA!C427,\"\")","v":""}]
[null,null,null,null,null,null,null,null,null,null,null,null,null,null,null,{"$f":"IF(AGENDA!C428<>\"\",AGENDA!C428,\"\")","v":""}]
[null,null,null,null,null,null,null,null,null,null,null,null,null,null,null,{"$f":"IF(AGENDA!C429<>\"\",AGENDA!C429,\"\")","v":""}]
[null,null,null,null,null,null,null,null,null,null,null,null,null,null,null,{"$f":"IF(AGENDA!C430<>\"\",AGENDA!C430,\"\")","v":""}]
[null,null,null,null,null,null,null,null,null,null,null,null,null,null,null,{"$f":"IF(AGENDA!C431<>\"\",AGENDA!C431,\"\")","v":""}]
[null,null,null,null,null,null,null,null,null,null,null,null,null,null,null,{"$f":"IF(AGENDA!C432<>\"\",AGENDA!C432,\"\")","v":""}]
[null,null,null,null,null,null,null,null,null,null,null,null,null,null,null,{"$f":"IF(AGENDA!C433<>\"\",AGENDA!C433,\"\")","v":""}]
[null,null,null,null,null,null,null,null,null,null,null,null,null,null,null,{"$f":"IF(AGENDA!C434<>\"\",AGENDA!C434,\"\")","v":""}]
[null,null,null,null,null,null,null,null,null,null,null,null,null,null,null,{"$f":"IF(AGENDA!C435<>\"\",AGENDA!C435,\"\")","v":""}]
[null,null,null,null,null,null,null,null,null,null,null,null,null,null,null,{"$f":"IF(AGENDA!C436<>\"\",AGENDA!C436,\"\")","v":""}]
[null,null,null,null,null,null,null,null,null,null,null,null,null,null,null,{"$f":"IF(AGENDA!C437<>\"\",AGENDA!C437,\"\")","v":""}]
[null,null,null,null,null,null,null,null,null,null,null,null,null,null,null,{"$f":"IF(AGENDA!C438<>\"\",AGENDA!C438,\"\")","v":""}]
[null,null,null,null,null,null,null,null,null,null,null,null,null,null,null,{"$f":"IF(AGENDA!C439<>\"\",AGENDA!C439,\"\")","v":""}]
[null,null,null,null,null,null,null,null,null,null,null,null,null,null,null,{"$f":"IF(AGENDA!C440<>\"\",AGENDA!C440,\"\")","v":""}]
[null,null,null,null,null,null,null,null,null,null,null,null,null,null,null,{"$f":"IF(AGENDA!C441<>\"\",AGENDA!C441,\"\")","v":""}]
[null,null,null,null,null,null,null,null,null,null,null,null,null,null,null,{"$f":"IF(AGENDA!C442<>\"\",AGENDA!C442,\"\")","v":""}]
[null,null,null,null,null,null,null,null,null,null,null,null,null,null,null,{"$f":"IF(AGENDA!C443<>\"\",AGENDA!C443,\"\")","v":""}]
[null,null,null,null,null,null,null,null,null,null,null,null,null,null,null,{"$f":"IF(AGENDA!C444<>\"\",AGENDA!C444,\"\")","v":""}]
[null,null,null,null,null,null,null,null,null,null,null,null,null,null,null,{"$f":"IF(AGENDA!C445<>\"\",AGENDA!C445,\"\")","v":""}]
[null,null,null,null,null,null,null,null,null,null,null,null,null,null,null,{"$f":"IF(AGENDA!C446<>\"\",AGENDA!C446,\"\")","v":""}]
[null,null,null,null,null,null,null,null,null,null,null,null,null,null,null,{"$f":"IF(AGENDA!C447<>\"\",AGENDA!C447,\"\")","v":""}]
[null,null,null,null,null,null,null,null,null,null,null,null,null,null,null,{"$f":"IF(AGENDA!C448<>\"\",AGENDA!C448,\"\")","v":""}]
[null,null,null,null,null,null,null,null,null,null,null,null,null,null,null,{"$f":"IF(AGENDA!C449<>\"\",AGENDA!C449,\"\")","v":""}]
[null,null,null,null,null,null,null,null,null,null,null,null,null,null,null,{"$f":"IF(AGENDA!C450<>\"\",AGENDA!C450,\"\")","v":""}]
[null,null,null,null,null,null,null,null,null,null,null,null,null,null,null,{"$f":"IF(AGENDA!C451<>\"\",AGENDA!C451,\"\")","v":""}]
[null,null,null,null,null,null,null,null,null,null,null,null,null,null,null,{"$f":"IF(AGENDA!C452<>\"\",AGENDA!C452,\"\")","v":""}]
[null,null,null,null,null,null,null,null,null,null,null,null,null,null,null,{"$f":"IF(AGENDA!C453<>\"\",AGENDA!C453,\"\")","v":""}]
[null,null,null,null,null,null,null,null,null,null,null,null,null,null,null,{"$f":"IF(AGENDA!C454<>\"\",AGENDA!C454,\"\")","v":""}]
[null,null,null,null,null,null,null,null,null,null,null,null,null,null,null,{"$f":"IF(AGENDA!C455<>\"\",AGENDA!C455,\"\")","v":""}]
[null,null,null,null,null,null,null,null,null,null,null,null,null,null,null,{"$f":"IF(AGENDA!C456<>\"\",AGENDA!C456,\"\")","v":""}]
[null,null,null,null,null,null,null,null,null,null,null,null,null,null,null,{"$f":"IF(AGENDA!C457<>\"\",AGENDA!C457,\"\")","v":""}]
[null,null,null,null,null,null,null,null,null,null,null,null,null,null,null,{"$f":"IF(AGENDA!C458<>\"\",AGENDA!C458,\"\")","v":""}]
[null,null,null,null,null,null,null,null,null,null,null,null,null,null,null,{"$f":"IF(AGENDA!C459<>\"\",AGENDA!C459,\"\")","v":""}]
[null,null,null,null,null,null,null,null,null,null,null,null,null,null,null,{"$f":"IF(AGENDA!C460<>\"\",AGENDA!C460,\"\")","v":""}]
[null,null,null,null,null,null,null,null,null,null,null,null,null,null,null,{"$f":"IF(AGENDA!C461<>\"\",AGENDA!C461,\"\")","v":""}]
[null,null,null,null,null,null,null,null,null,null,null,null,null,null,null,{"$f":"IF(AGENDA!C462<>\"\",AGENDA!C462,\"\")","v":""}]
[null,null,null,null,null,null,null,null,null,null,null,null,null,null,null,{"$f":"IF(AGENDA!C463<>\"\",AGENDA!C463,\"\")","v":""}]
[null,null,null,null,null,null,null,null,null,null,null,null,null,null,null,{"$f":"IF(AGENDA!C464<>\"\",AGENDA!C464,\"\")","v":""}]
[null,null,null,null,null,null,null,null,null,null,null,null,null,null,null,{"$f":"IF(AGENDA!C465<>\"\",AGENDA!C465,\"\")","v":""}]
[null,null,null,null,null,null,null,null,null,null,null,null,null,null,null,{"$f":"IF(AGENDA!C466<>\"\",AGENDA!C466,\"\")","v":""}]
[null,null,null,null,null,null,null,null,null,null,null,null,null,null,null,{"$f":"IF(AGENDA!C467<>\"\",AGENDA!C467,\"\")","v":0}]
[null,null,null,null,null,null,null,null,null,null,null,null,null,null,null,{"$f":"IF(AGENDA!C468<>\"\",AGENDA!C468,\"\")","v":0}]
[null,null,null,null,null,null,null,null,null,null,null,null,null,null,null,{"$f":"IF(AGENDA!C469<>\"\",AGENDA!C469,\"\")","v":0}]
[null,null,null,null,null,null,null,null,null,null,null,null,null,null,null,{"$f":"IF(AGENDA!C470<>\"\",C470,\"\")","v":""}]
[null,null,null,null,null,null,null,null,null,null,null,null,null,null,null,{"$f":"IF(AGENDA!C471<>\"\",C471,\"\")","v":""}]
[null,null,null,null,null,null,null,null,null,null,null,null,null,null,null,{"$f":"IF(AGENDA!C472<>\"\",C472,\"\")","v":""}]
[null,null,null,null,null,null,null,null,null,null,null,null,null,null,null,{"$f":"IF(AGENDA!C473<>\"\",C473,\"\")","v":""}]
[null,null,null,null,null,null,null,null,null,null,null,null,null,null,null,{"$f":"IF(AGENDA!C474<>\"\",C474,\"\")","v":""}]
[null,null,null,null,null,null,null,null,null,null,null,null,null,null,null,{"$f":"IF(AGENDA!C475<>\"\",C475,\"\")","v":""}]
[null,null,null,null,null,null,null,null,null,null,null,null,null,null,null,{"$f":"IF(AGENDA!C476<>\"\",C476,\"\")","v":""}]
[null,null,null,null,null,null,null,null,null,null,null,null,null,null,null,{"$f":"IF(AGENDA!C477<>\"\",C477,\"\")","v":""}]
[null,null,null,null,null,null,null,null,null,null,null,null,null,null,null,{"$f":"IF(AGENDA!C478<>\"\",C478,\"\")","v":""}]
[null,null,null,null,null,null,null,null,null,null,null,null,null,null,null,{"$f":"IF(AGENDA!C479<>\"\",C479,\"\")","v":""}]
[null,null,null,null,null,null,null,null,null,null,null,null,null,null,null,{"$f":"IF(AGENDA!C480<>\"\",C480,\"\")","v":""}]
[null,null,null,null,null,null,null,null,null,null,null,null,null,null,null,{"$f":"IF(AGENDA!C481<>\"\",C481,\"\")","v":""}]
[null,null,null,null,null,null,null,null,null,null,null,null,null,null,null,{"$f":"IF(AGENDA!C482<>\"\",C482,\"\")","v":""}]
[null,null,null,null,null,null,null,null,null,null,null,null,null,null,null,{"$f":"IF(AGENDA!C483<>\"\",C483,\"\")","v":""}]
[null,null,null,null,null,null,null,null,null,null,null,null,null,null,null,{"$f":"IF(AGENDA!C484<>\"\",C484,\"\")","v":""}]
[null,null,null,null,null,null,null,null,null,null,null,null,null,null,null,{"$f":"IF(AGENDA!C485<>\"\",C485,\"\")","v":""}]
[null,null,null,null,null,null,null,null,null,null,null,null,null,null,null,{"$f":"IF(AGENDA!C486<>\"\",C486,\"\")","v":""}]
[null,null,null,null,null,null,null,null,null,null,null,null,null,null,null,{"$f":"IF(AGENDA!C487<>\"\",C487,\"\")","v":""}]
[null,null,null,null,null,null,null,null,null,null,null,null,null,null,null,{"$f":"IF(AGENDA!C488<>\"\",C488,\"\")","v":""}]
[null,null,null,null,null,null,null,null,null,null,null,null,null,null,null,{"$f":"IF(AGENDA!C489<>\"\",C489,\"\")","v":""}]
[null,null,null,null,null,null,null,null,null,null,null,null,null,null,null,{"$f":"IF(AGENDA!C490<>\"\",C490,\"\")","v":""}]
[null,null,null,null,null,null,null,null,null,null,null,null,null,null,null,{"$f":"IF(AGENDA!C491<>\"\",C491,\"\")","v":""}]
[null,null,null,null,null,null,null,null,null,null,null,null,null,null,null,{"$f":"IF(AGENDA!C492<>\"\",C492,\"\")","v":""}]
[null,null,null,null,null,null,null,null,null,null,null,null,null,null,null,{"$f":"IF(AGENDA!C493<>\"\",C493,\"\")","v":""}]
[null,null,null,null,null,null,null,null,null,null,null,null,null,null,null,{"$f":"IF(AGENDA!C494<>\"\",C494,\"\")","v":""}]
[null,null,null,null,null,null,null,null,null,null,null,null,null,null,null,{"$f":"IF(AGENDA!C495<>\"\",C495,\"\")","v":""}]
[null,null,null,null,null,null,null,null,null,null,null,null,null,null,null,{"$f":"IF(AGENDA!C496<>\"\",C496,\"\")","v":""}]
[null,null,null,null,null,null,null,null,null,null,null,null,null,null,null,{"$f":"IF(AGENDA!C497<>\"\",C497,\"\")","v":""}]
[null,null,null,null,null,null,null,null,null,null,null,null,null,null,null,{"$f":"IF(AGENDA!C498<>\"\",C498,\"\")","v":""}]
[null,null,null,null,null,null,null,null,null,null,null,null,null,null,null,{"$f":"IF(AGENDA!C499<>\"\",C499,\"\")","v":""}]
[null,null,null,null,null,null,null,null,null,null,null,null,null,null,null,{"$f":"IF(AGENDA!C500<>\"\",C500,\"\")","v":""}]
[null,null,null,null,null,null,null,null,null,null,null,null,null,null,null,{"$f":"IF(AGENDA!C501<>\"\",C501,\"\")","v":""}]
[null,null,null,null,null,null,null,null,null,null,null,null,null,null,null,{"$f":"IF(AGENDA!C502<>\"\",C502,\"\")","v":""}]
[null,null,null,null,null,null,null,null,null,null,null,null,null,null,null,{"$f":"IF(AGENDA!C503<>\"\",C503,\"\")","v":""}]
[null,null,null,null,null,null,null,null,null,null,null,null,null,null,null,{"$f":"IF(AGENDA!C504<>\"\",C504,\"\")","v":""}]
[null,null,null,null,null,null,null,null,null,null,null,null,null,null,null,{"$f":"IF(AGENDA!C505<>\"\",C505,\"\")","v":""}]
[null,null,null,null,null,null,null,null,null,null,null,null,null,null,null,{"$f":"IF(AGENDA!C506<>\"\",C506,\"\")","v":""}]
[null,null,null,null,null,null,null,null,null,null,null,null,null,null,null,{"$f":"IF(AGENDA!C507<>\"\",C507,\"\")","v":""}]
[null,null,null,null,null,null,null,null,null,null,null,null,null,null,null,{"$f":"IF(AGENDA!C508<>\"\",C508,\"\")","v":""}]
[null,null,null,null,null,null,null,null,null,null,null,null,null,null,null,{"$f":"IF(AGENDA!C509<>\"\",C509,\"\")","v":""}]
[null,null,null,null,null,null,null,null,null,null,null,null,null,null,null,{"$f":"IF(AGENDA!C510<>\"\",C510,\"\")","v":""}]
[null,null,null,null,null,null,null,null,null,null,null,null,null,null,null,{"$f":"IF(AGENDA!C511<>\"\",C511,\"\")","v":""}]
[null,null,null,null,null,null,null,null,null,null,null,null,null,null,null,{"$f":"IF(AGENDA!C512<>\"\",C512,\"\")","v":""}]
[null,null,null,null,null,null,null,null,null,null,null,null,null,null,null,{"$f":"IF(AGENDA!C513<>\"\",C513,\"\")","v":""}]
[null,null,null,null,null,null,null,null,null,null,null,null,null,null,null,{"$f":"IF(AGENDA!C514<>\"\",C514,\"\")","v":""}]
[null,null,null,null,null,null,null,null,null,null,null,null,null,null,null,{"$f":"IF(AGENDA!C515<>\"\",C515,\"\")","v":""}]
[null,null,null,null,null,null,null,null,null,null,null,null,null,null,null,{"$f":"IF(AGENDA!C516<>\"\",C516,\"\")","v":""}]
[null,null,null,null,null,null,null,null,null,null,null,null,null,null,null,{"$f":"IF(AGENDA!C517<>\"\",C517,\"\")","v":""}]
[null,null,null,null,null,null,null,null,null,null,null,null,null,null,null,{"$f":"IF(AGENDA!C518<>\"\",C518,\"\")","v":""}]
[null,null,null,null,null,null,null,null,null,null,null,null,null,null,null,{"$f":"IF(AGENDA!C519<>\"\",C519,\"\")","v":""}]
[null,null,null,null,null,null,null,null,null,null,null,null,null,null,null,{"$f":"IF(AGENDA!C520<>\"\",C520,\"\")","v":""}]
[null,null,null,null,null,null,null,null,null,null,null,null,null,null,null,{"$f":"IF(AGENDA!C521<>\"\",C521,\"\")","v":""}]
[null,null,null,null,null,null,null,null,null,null,null,null,null,null,null,{"$f":"IF(AGENDA!C522<>\"\",C522,\"\")","v":""}]
[null,null,null,null,null,null,null,null,null,null,null,null,null,null,null,{"$f":"IF(AGENDA!C523<>\"\",C523,\"\")","v":""}]
[null,null,null,null,null,null,null,null,null,null,null,null,null,null,null,{"$f":"IF(AGENDA!C524<>\"\",C524,\"\")","v":""}]
[null,null,null,null,null,null,null,null,null,null,null,null,null,null,null,{"$f":"IF(AGENDA!C525<>\"\",C525,\"\")","v":""}]
[null,null,null,null,null,null,null,null,null,null,null,null,null,null,null,{"$f":"IF(AGENDA!C526<>\"\",C526,\"\")","v":""}]
[null,null,null,null,null,null,null,null,null,null,null,null,null,null,null,{"$f":"IF(AGENDA!C527<>\"\",C527,\"\")","v":""}]
[null,null,null,null,null,null,null,null,null,null,null,null,null,null,null,{"$f":"IF(AGENDA!C528<>\"\",C528,\"\")","v":""}]
[null,null,null,null,null,null,null,null,null,null,null,null,null,null,null,{"$f":"IF(AGENDA!C529<>\"\",C529,\"\")","v":""}]
[null,null,null,null,null,null,null,null,null,null,null,null,null,null,null,{"$f":"IF(AGENDA!C530<>\"\",C530,\"\")","v":""}]
[null,null,null,null,null,null,null,null,null,null,null,null,null,null,null,{"$f":"IF(AGENDA!C531<>\"\",C531,\"\")","v":""}]
[null,null,null,null,null,null,null,null,null,null,null,null,null,null,null,{"$f":"IF(AGENDA!C532<>\"\",C532,\"\")","v":""}]
[null,null,null,null,null,null,null,null,null,null,null,null,null,null,null,{"$f":"IF(AGENDA!C533<>\"\",C533,\"\")","v":""}]
[null,null,null,null,null,null,null,null,null,null,null,null,null,null,null,{"$f":"IF(AGENDA!C534<>\"\",C534,\"\")","v":""}]
[null,null,null,null,null,null,null,null,null,null,null,null,null,null,null,{"$f":"IF(AGENDA!C535<>\"\",C535,\"\")","v":""}]
[null,null,null,null,null,null,null,null,null,null,null,null,null,null,null,{"$f":"IF(AGENDA!C536<>\"\",C536,\"\")","v":""}]
[null,null,null,null,null,null,null,null,null,null,null,null,null,null,null,{"$f":"IF(AGENDA!C537<>\"\",C537,\"\")","v":""}]
[null,null,null,null,null,null,null,null,null,null,null,null,null,null,null,{"$f":"IF(AGENDA!C538<>\"\",C538,\"\")","v":""}]
[null,null,null,null,null,null,null,null,null,null,null,null,null,null,null,{"$f":"IF(AGENDA!C539<>\"\",C539,\"\")","v":""}]
[null,null,null,null,null,null,null,null,null,null,null,null,null,null,null,{"$f":"IF(AGENDA!C540<>\"\",C540,\"\")","v":""}]
[null,null,null,null,null,null,null,null,null,null,null,null,null,null,null,{"$f":"IF(AGENDA!C541<>\"\",C541,\"\")","v":""}]
[null,null,null,null,null,null,null,null,null,null,null,null,null,null,null,{"$f":"IF(AGENDA!C542<>\"\",C542,\"\")","v":""}]
[null,null,null,null,null,null,null,null,null,null,null,null,null,null,null,{"$f":"IF(AGENDA!C543<>\"\",C543,\"\")","v":""}]
[null,null,null,null,null,null,null,null,null,null,null,null,null,null,null,{"$f":"IF(AGENDA!C544<>\"\",C544,\"\")","v":""}]
[null,null,null,null,null,null,null,null,null,null,null,null,null,null,null,{"$f":"IF(AGENDA!C545<>\"\",C545,\"\")","v":""}]
[null,null,null,null,null,null,null,null,null,null,null,null,null,null,null,{"$f":"IF(AGENDA!C546<>\"\",C546,\"\")","v":""}]
[null,null,null,null,null,null,null,null,null,null,null,null,null,null,null,{"$f":"IF(AGENDA!C547<>\"\",C547,\"\")","v":""}]
[null,null,null,null,null,null,null,null,null,null,null,null,null,null,null,{"$f":"IF(AGENDA!C548<>\"\",C548,\"\")","v":""}]
[null,null,null,null,null,null,null,null,null,null,null,null,null,null,null,{"$f":"IF(AGENDA!C549<>\"\",C549,\"\")","v":""}]
[null,null,null,null,null,null,null,null,null,null,null,null,null,null,null,{"$f":"IF(AGENDA!C550<>\"\",C550,\"\")","v":""}]
[null,null,null,null,null,null,null,null,null,null,null,null,null,null,null,{"$f":"IF(AGENDA!C551<>\"\",C551,\"\")","v":""}]
[null,null,null,null,null,null,null,null,null,null,null,null,null,null,null,{"$f":"IF(AGENDA!C552<>\"\",C552,\"\")","v":""}]
[null,null,null,null,null,null,null,null,null,null,null,null,null,null,null,{"$f":"IF(AGENDA!C553<>\"\",C553,\"\")","v":""}]
[null,null,null,null,null,null,null,null,null,null,null,null,null,null,null,{"$f":"IF(AGENDA!C554<>\"\",C554,\"\")","v":""}]
[null,null,null,null,null,null,null,null,null,null,null,null,null,null,null,{"$f":"IF(AGENDA!C555<>\"\",C555,\"\")","v":""}]
[null,null,null,null,null,null,null,null,null,null,null,null,null,null,null,{"$f":"IF(AGENDA!C556<>\"\",C556,\"\")","v":""}]
[null,null,null,null,null,null,null,null,null,null,null,null,null,null,null,{"$f":"IF(AGENDA!C557<>\"\",C557,\"\")","v":""}]
[null,null,null,null,null,null,null,null,null,null,null,null,null,null,null,{"$f":"IF(AGENDA!C558<>\"\",C558,\"\")","v":""}]
[null,null,null,null,null,null,null,null,null,null,null,null,null,null,null,{"$f":"IF(AGENDA!C559<>\"\",C559,\"\")","v":""}]
[null,null,null,null,null,null,null,null,null,null,null,null,null,null,null,{"$f":"IF(AGENDA!C560<>\"\",C560,\"\")","v":""}]
[null,null,null,null,null,null,null,null,null,null,null,null,null,null,null,{"$f":"IF(AGENDA!C561<>\"\",C561,\"\")","v":""}]
[null,null,null,null,null,null,null,null,null,null,null,null,null,null,null,{"$f":"IF(AGENDA!C562<>\"\",C562,\"\")","v":""}]
[null,null,null,null,null,null,null,null,null,null,null,null,null,null,null,{"$f":"IF(AGENDA!C563<>\"\",C563,\"\")","v":""}]
[null,null,null,null,null,null,null,null,null,null,null,null,null,null,null,{"$f":"IF(AGENDA!C564<>\"\",C564,\"\")","v":""}]
[null,null,null,null,null,null,null,null,null,null,null,null,null,null,null,{"$f":"IF(AGENDA!C565<>\"\",C565,\"\")","v":""}]
[null,null,null,null,null,null,null,null,null,null,null,null,null,null,null,{"$f":"IF(AGENDA!C566<>\"\",C566,\"\")","v":""}]
[null,null,null,null,null,null,null,null,null,null,null,null,null,null,null,{"$f":"IF(AGENDA!C567<>\"\",C567,\"\")","v":""}]
[null,null,null,null,null,null,null,null,null,null,null,null,null,null,null,{"$f":"IF(AGENDA!C568<>\"\",C568,\"\")","v":""}]
[null,null,null,null,null,null,null,null,null,null,null,null,null,null,null,{"$f":"IF(AGENDA!C569<>\"\",C569,\"\")","v":""}]
[null,null,null,null,null,null,null,null,null,null,null,null,null,null,null,{"$f":"IF(AGENDA!C570<>\"\",C570,\"\")","v":""}]
[null,null,null,null,null,null,null,null,null,null,null,null,null,null,null,{"$f":"IF(AGENDA!C571<>\"\",C571,\"\")","v":""}]
[null,null,null,null,null,null,null,null,null,null,null,null,null,null,null,{"$f":"IF(AGENDA!C572<>\"\",C572,\"\")","v":""}]
[null,null,null,null,null,null,null,null,null,null,null,null,null,null,null,{"$f":"IF(AGENDA!C573<>\"\",C573,\"\")","v":""}]
[null,null,null,null,null,null,null,null,null,null,null,null,null,null,null,{"$f":"IF(AGENDA!C574<>\"\",C574,\"\")","v":""}]
[null,null,null,null,null,null,null,null,null,null,null,null,null,null,null,{"$f":"IF(AGENDA!C575<>\"\",C575,\"\")","v":""}]
[null,null,null,null,null,null,null,null,null,null,null,null,null,null,null,{"$f":"IF(AGENDA!C576<>\"\",C576,\"\")","v":""}]
[null,null,null,null,null,null,null,null,null,null,null,null,null,null,null,{"$f":"IF(AGENDA!C577<>\"\",C577,\"\")","v":""}]
[null,null,null,null,null,null,null,null,null,null,null,null,null,null,null,{"$f":"IF(AGENDA!C578<>\"\",C578,\"\")","v":""}]
[null,null,null,null,null,null,null,null,null,null,null,null,null,null,null,{"$f":"IF(AGENDA!C579<>\"\",C579,\"\")","v":""}]
[null,null,null,null,null,null,null,null,null,null,null,null,null,null,null,{"$f":"IF(AGENDA!C580<>\"\",C580,\"\")","v":""}]
[null,null,null,null,null,null,null,null,null,null,null,null,null,null,null,{"$f":"IF(AGENDA!C581<>\"\",C581,\"\")","v":""}]
[null,null,null,null,null,null,null,null,null,null,null,null,null,null,null,{"$f":"IF(AGENDA!C582<>\"\",C582,\"\")","v":""}]
[null,null,null,null,null,null,null,null,null,null,null,null,null,null,null,{"$f":"IF(AGENDA!C583<>\"\",C583,\"\")","v":""}]
[null,null,null,null,null,null,null,null,null,null,null,null,null,null,null,{"$f":"IF(AGENDA!C584<>\"\",C584,\"\")","v":""}]
[null,null,null,null,null,null,null,null,null,null,null,null,null,null,null,{"$f":"IF(AGENDA!C585<>\"\",C585,\"\")","v":""}]
[null,null,null,null,null,null,null,null,null,null,null,null,null,null,null,{"$f":"IF(AGENDA!C586<>\"\",C586,\"\")","v":""}]
[null,null,null,null,null,null,null,null,null,null,null,null,null,null,null,{"$f":"IF(AGENDA!C587<>\"\",C587,\"\")","v":""}]
[null,null,null,null,null,null,null,null,null,null,null,null,null,null,null,{"$f":"IF(AGENDA!C588<>\"\",C588,\"\")","v":""}]
[null,null,null,null,null,null,null,null,null,null,null,null,null,null,null,{"$f":"IF(AGENDA!C589<>\"\",C589,\"\")","v":""}]
[null,null,null,null,null,null,null,null,null,null,null,null,null,null,null,{"$f":"IF(AGENDA!C590<>\"\",C590,\"\")","v":""}]
[null,null,null,null,null,null,null,null,null,null,null,null,null,null,null,{"$f":"IF(AGENDA!C591<>\"\",C591,\"\")","v":""}]
[null,null,null,null,null,null,null,null,null,null,null,null,null,null,null,{"$f":"IF(AGENDA!C592<>\"\",C592,\"\")","v":""}]
[null,null,null,null,null,null,null,null,null,null,null,null,null,null,null,{"$f":"IF(AGENDA!C593<>\"\",C593,\"\")","v":""}]
[null,null,null,null,null,null,null,null,null,null,null,null,null,null,null,{"$f":"IF(AGENDA!C594<>\"\",C594,\"\")","v":""}]
[null,null,null,null,null,null,null,null,null,null,null,null,null,null,null,{"$f":"IF(AGENDA!C595<>\"\",C595,\"\")","v":""}]
[null,null,null,null,null,null,null,null,null,null,null,null,null,null,null,{"$f":"IF(AGENDA!C596<>\"\",C596,\"\")","v":""}]
[null,null,null,null,null,null,null,null,null,null,null,null,null,null,null,{"$f":"IF(AGENDA!C597<>\"\",C597,\"\")","v":""}]
[null,null,null,null,null,null,null,null,null,null,null,null,null,null,null,{"$f":"IF(AGENDA!C598<>\"\",C598,\"\")","v":""}]
[null,null,null,null,null,null,null,null,null,null,null,null,null,null,null,{"$f":"IF(AGENDA!C599<>\"\",C599,\"\")","v":""}]
[null,null,null,null,null,null,null,null,null,null,null,null,null,null,null,{"$f":"IF(AGENDA!C600<>\"\",C600,\"\")","v":""}]
[null,null,null,null,null,null,null,null,null,null,null,null,null,null,null,{"$f":"IF(AGENDA!C601<>\"\",C601,\"\")","v":""}]
[null,null,null,null,null,null,null,null,null,null,null,null,null,null,null,{"$f":"IF(AGENDA!C602<>\"\",C602,\"\")","v":""}]
[null,null,null,null,null,null,null,null,null,null,null,null,null,null,null,{"$f":"IF(AGENDA!C603<>\"\",C603,\"\")","v":""}]
[null,null,null,null,null,null,null,null,null,null,null,null,null,null,null,{"$f":"IF(AGENDA!C604<>\"\",C604,\"\")","v":""}]
[null,null,null,null,null,null,null,null,null,null,null,null,null,null,null,{"$f":"IF(AGENDA!C605<>\"\",C605,\"\")","v":""}]
[null,null,null,null,null,null,null,null,null,null,null,null,null,null,null,{"$f":"IF(AGENDA!C606<>\"\",C606,\"\")","v":""}]
[null,null,null,null,null,null,null,null,null,null,null,null,null,null,null,{"$f":"IF(AGENDA!C607<>\"\",C607,\"\")","v":""}]
[null,null,null,null,null,null,null,null,null,null,null,null,null,null,null,{"$f":"IF(AGENDA!C608<>\"\",C608,\"\")","v":""}]
[null,null,null,null,null,null,null,null,null,null,null,null,null,null,null,{"$f":"IF(AGENDA!C609<>\"\",C609,\"\")","v":""}]
[null,null,null,null,null,null,null,null,null,null,null,null,null,null,null,{"$f":"IF(AGENDA!C610<>\"\",C610,\"\")","v":""}]
[null,null,null,null,null,null,null,null,null,null,null,null,null,null,null,{"$f":"IF(AGENDA!C611<>\"\",C611,\"\")","v":""}]
[null,null,null,null,null,null,null,null,null,null,null,null,null,null,null,{"$f":"IF(AGENDA!C612<>\"\",C612,\"\")","v":""}]
[null,null,null,null,null,null,null,null,null,null,null,null,null,null,null,{"$f":"IF(AGENDA!C613<>\"\",C613,\"\")","v":""}]
[null,null,null,null,null,null,null,null,null,null,null,null,null,null,null,{"$f":"IF(AGENDA!C614<>\"\",C614,\"\")","v":""}]
[null,null,null,null,null,null,null,null,null,null,null,null,null,null,null,{"$f":"IF(AGENDA!C615<>\"\",C615,\"\")","v":""}]
[null,null,null,null,null,null,null,null,null,null,null,null,null,null,null,{"$f":"IF(AGENDA!C616<>\"\",C616,\"\")","v":""}]
[null,null,null,null,null,null,null,null,null,null,null,null,null,null,null,{"$f":"IF(AGENDA!C617<>\"\",C617,\"\")","v":""}]
[null,null,null,null,null,null,null,null,null,null,null,null,null,null,null,{"$f":"IF(AGENDA!C618<>\"\",C618,\"\")","v":""}]
[null,null,null,null,null,null,null,null,null,null,null,null,null,null,null,{"$f":"IF(AGENDA!C619<>\"\",C619,\"\")","v":""}]
[null,null,null,null,null,null,null,null,null,null,null,null,null,null,null,{"$f":"IF(AGENDA!C620<>\"\",C620,\"\")","v":""}]
[null,null,null,null,null,null,null,null,null,null,null,null,null,null,null,{"$f":"IF(AGENDA!C621<>\"\",C621,\"\")","v":""}]
[null,null,null,null,null,null,null,null,null,null,null,null,null,null,null,{"$f":"IF(AGENDA!C622<>\"\",C622,\"\")","v":""}]
[null,null,null,null,null,null,null,null,null,null,null,null,null,null,null,{"$f":"IF(AGENDA!C623<>\"\",C623,\"\")","v":""}]
[null,null,null,null,null,null,null,null,null,null,null,null,null,null,null,{"$f":"IF(AGENDA!C624<>\"\",C624,\"\")","v":""}]
[null,null,null,null,null,null,null,null,null,null,null,null,null,null,null,{"$f":"IF(AGENDA!C625<>\"\",C625,\"\")","v":""}]
[null,null,null,null,null,null,null,null,null,null,null,null,null,null,null,{"$f":"IF(AGENDA!C626<>\"\",C626,\"\")","v":""}]
[null,null,null,null,null,null,null,null,null,null,null,null,null,null,null,{"$f":"IF(AGENDA!C627<>\"\",C627,\"\")","v":""}]
[null,null,null,null,null,null,null,null,null,null,null,null,null,null,null,{"$f":"IF(AGENDA!C628<>\"\",C628,\"\")","v":""}]
[null,null,null,null,null,null,null,null,null,null,null,null,null,null,null,{"$f":"IF(AGENDA!C629<>\"\",C629,\"\")","v":""}]
[null,null,null,null,null,null,null,null,null,null,null,null,null,null,null,{"$f":"IF(AGENDA!C630<>\"\",C630,\"\")","v":""}]
[null,null,null,null,null,null,null,null,null,null,null,null,null,null,null,{"$f":"IF(AGENDA!C631<>\"\",C631,\"\")","v":""}]
[null,null,null,null,null,null,null,null,null,null,null,null,null,null,null,{"$f":"IF(AGENDA!C632<>\"\",C632,\"\")","v":""}]
[null,null,null,null,null,null,null,null,null,null,null,null,null,null,null,{"$f":"IF(AGENDA!C633<>\"\",C633,\"\")","v":""}]
[null,null,null,null,null,null,null,null,null,null,null,null,null,null,null,{"$f":"IF(AGENDA!C634<>\"\",C634,\"\")","v":""}]
[null,null,null,null,null,null,null,null,null,null,null,null,null,null,null,{"$f":"IF(AGENDA!C635<>\"\",C635,\"\")","v":""}]
[null,null,null,null,null,null,null,null,null,null,null,null,null,null,null,{"$f":"IF(AGENDA!C636<>\"\",C636,\"\")","v":""}]
[null,null,null,null,null,null,null,null,null,null,null,null,null,null,null,{"$f":"IF(AGENDA!C637<>\"\",C637,\"\")","v":""}]
[null,null,null,null,null,null,null,null,null,null,null,null,null,null,null,{"$f":"IF(AGENDA!C638<>\"\",C638,\"\")","v":""}]
[null,null,null,null,null,null,null,null,null,null,null,null,null,null,null,{"$f":"IF(AGENDA!C639<>\"\",C639,\"\")","v":""}]
[null,null,null,null,null,null,null,null,null,null,null,null,null,null,null,{"$f":"IF(AGENDA!C640<>\"\",C640,\"\")","v":""}]
[null,null,null,null,null,null,null,null,null,null,null,null,null,null,null,{"$f":"IF(AGENDA!C641<>\"\",C641,\"\")","v":""}]
[null,null,null,null,null,null,null,null,null,null,null,null,null,null,null,{"$f":"IF(AGENDA!C642<>\"\",C642,\"\")","v":""}]
[null,null,null,null,null,null,null,null,null,null,null,null,null,null,null,{"$f":"IF(AGENDA!C643<>\"\",C643,\"\")","v":""}]
[null,null,null,null,null,null,null,null,null,null,null,null,null,null,null,{"$f":"IF(AGENDA!C644<>\"\",C644,\"\")","v":""}]
[null,null,null,null,null,null,null,null,null,null,null,null,null,null,null,{"$f":"IF(AGENDA!C645<>\"\",C645,\"\")","v":""}]
[null,null,null,null,null,null,null,null,null,null,null,null,null,null,null,{"$f":"IF(AGENDA!C646<>\"\",C646,\"\")","v":""}]
[null,null,null,null,null,null,null,null,null,null,null,null,null,null,null,{"$f":"IF(AGENDA!C647<>\"\",C647,\"\")","v":""}]
[null,null,null,null,null,null,null,null,null,null,null,null,null,null,null,{"$f":"IF(AGENDA!C648<>\"\",C648,\"\")","v":""}]
[null,null,null,null,null,null,null,null,null,null,null,null,null,null,null,{"$f":"IF(AGENDA!C649<>\"\",C649,\"\")","v":""}]
[null,null,null,null,null,null,null,null,null,null,null,null,null,null,null,{"$f":"IF(AGENDA!C650<>\"\",C650,\"\")","v":""}]
[null,null,null,null,null,null,null,null,null,null,null,null,null,null,null,{"$f":"IF(AGENDA!C651<>\"\",C651,\"\")","v":""}]
[null,null,null,null,null,null,null,null,null,null,null,null,null,null,null,{"$f":"IF(AGENDA!C652<>\"\",C652,\"\")","v":""}]
[null,null,null,null,null,null,null,null,null,null,null,null,null,null,null,{"$f":"IF(AGENDA!C653<>\"\",C653,\"\")","v":""}]
[null,null,null,null,null,null,null,null,null,null,null,null,null,null,null,{"$f":"IF(AGENDA!C654<>\"\",C654,\"\")","v":""}]
[null,null,null,null,null,null,null,null,null,null,null,null,null,null,null,{"$f":"IF(AGENDA!C655<>\"\",C655,\"\")","v":""}]
[null,null,null,null,null,null,null,null,null,null,null,null,null,null,null,{"$f":"IF(AGENDA!C656<>\"\",C656,\"\")","v":""}]
[null,null,null,null,null,null,null,null,null,null,null,null,null,null,null,{"$f":"IF(AGENDA!C657<>\"\",C657,\"\")","v":""}]
[null,null,null,null,null,null,null,null,null,null,null,null,null,null,null,{"$f":"IF(AGENDA!C658<>\"\",C658,\"\")","v":""}]
[null,null,null,null,null,null,null,null,null,null,null,null,null,null,null,{"$f":"IF(AGENDA!C659<>\"\",C659,\"\")","v":""}]
[null,null,null,null,null,null,null,null,null,null,null,null,null,null,null,{"$f":"IF(AGENDA!C660<>\"\",C660,\"\")","v":""}]
[null,null,null,null,null,null,null,null,null,null,null,null,null,null,null,{"$f":"IF(AGENDA!C661<>\"\",C661,\"\")","v":""}]
[null,null,null,null,null,null,null,null,null,null,null,null,null,null,null,{"$f":"IF(AGENDA!C662<>\"\",C662,\"\")","v":""}]
[null,null,null,null,null,null,null,null,null,null,null,null,null,null,null,{"$f":"IF(AGENDA!C663<>\"\",C663,\"\")","v":""}]
[null,null,null,null,null,null,null,null,null,null,null,null,null,null,null,{"$f":"IF(AGENDA!C664<>\"\",C664,\"\")","v":""}]
[null,null,null,null,null,null,null,null,null,null,null,null,null,null,null,{"$f":"IF(AGENDA!C665<>\"\",C665,\"\")","v":""}]
[null,null,null,null,null,null,null,null,null,null,null,null,null,null,null,{"$f":"IF(AGENDA!C666<>\"\",C666,\"\")","v":""}]
[null,null,null,null,null,null,null,null,null,null,null,null,null,null,null,{"$f":"IF(AGENDA!C667<>\"\",C667,\"\")","v":""}]
[null,null,null,null,null,null,null,null,null,null,null,null,null,null,null,{"$f":"IF(AGENDA!C668<>\"\",C668,\"\")","v":""}]
[null,null,null,null,null,null,null,null,null,null,null,null,null,null,null,{"$f":"IF(AGENDA!C669<>\"\",C669,\"\")","v":""}]
[null,null,null,null,null,null,null,null,null,null,null,null,null,null,null,{"$f":"IF(AGENDA!C670<>\"\",C670,\"\")","v":""}]
[null,null,null,null,null,null,null,null,null,null,null,null,null,null,null,{"$f":"IF(AGENDA!C671<>\"\",C671,\"\")","v":""}]
[null,null,null,null,null,null,null,null,null,null,null,null,null,null,null,{"$f":"IF(AGENDA!C672<>\"\",C672,\"\")","v":""}]
[null,null,null,null,null,null,null,null,null,null,null,null,null,null,null,{"$f":"IF(AGENDA!C673<>\"\",C673,\"\")","v":""}]
[null,null,null,null,null,null,null,null,null,null,null,null,null,null,null,{"$f":"IF(AGENDA!C674<>\"\",C674,\"\")","v":""}]
[null,null,null,null,null,null,null,null,null,null,null,null,null,null,null,{"$f":"IF(AGENDA!C675<>\"\",C675,\"\")","v":""}]
[null,null,null,null,null,null,null,null,null,null,null,null,null,null,null,{"$f":"IF(AGENDA!C676<>\"\",C676,\"\")","v":""}]
[null,null,null,null,null,null,null,null,null,null,null,null,null,null,null,{"$f":"IF(AGENDA!C677<>\"\",C677,\"\")","v":""}]
[null,null,null,null,null,null,null,null,null,null,null,null,null,null,null,{"$f":"IF(AGENDA!C678<>\"\",C678,\"\")","v":""}]
[null,null,null,null,null,null,null,null,null,null,null,null,null,null,null,{"$f":"IF(AGENDA!C679<>\"\",C679,\"\")","v":""}]
[null,null,null,null,null,null,null,null,null,null,null,null,null,null,null,{"$f":"IF(AGENDA!C680<>\"\",C680,\"\")","v":""}]
[null,null,null,null,null,null,null,null,null,null,null,null,null,null,null,{"$f":"IF(AGENDA!C681<>\"\",C681,\"\")","v":""}]
[null,null,null,null,null,null,null,null,null,null,null,null,null,null,null,{"$f":"IF(AGENDA!C682<>\"\",C682,\"\")","v":""}]
[null,null,null,null,null,null,null,null,null,null,null,null,null,null,null,{"$f":"IF(AGENDA!C683<>\"\",C683,\"\")","v":""}]
[null,null,null,null,null,null,null,null,null,null,null,null,null,null,null,{"$f":"IF(AGENDA!C684<>\"\",C684,\"\")","v":""}]
[null,null,null,null,null,null,null,null,null,null,null,null,null,null,null,{"$f":"IF(AGENDA!C685<>\"\",C685,\"\")","v":""}]
[null,null,null,null,null,null,null,null,null,null,null,null,null,null,null,{"$f":"IF(AGENDA!C686<>\"\",C686,\"\")","v":""}]
[null,null,null,null,null,null,null,null,null,null,null,null,null,null,null,{"$f":"IF(AGENDA!C687<>\"\",C687,\"\")","v":""}]
[null,null,null,null,null,null,null,null,null,null,null,null,null,null,null,{"$f":"IF(AGENDA!C688<>\"\",C688,\"\")","v":""}]
[null,null,null,null,null,null,null,null,null,null,null,null,null,null,null,{"$f":"IF(AGENDA!C689<>\"\",C689,\"\")","v":""}]
[null,null,null,null,null,null,null,null,null,null,null,null,null,null,null,{"$f":"IF(AGENDA!C690<>\"\",C690,\"\")","v":""}]
[null,null,null,null,null,null,null,null,null,null,null,null,null,null,null,{"$f":"IF(AGENDA!C691<>\"\",C691,\"\")","v":""}]
[null,null,null,null,null,null,null,null,null,null,null,null,null,null,null,{"$f":"IF(AGENDA!C692<>\"\",C692,\"\")","v":""}]
[null,null,null,null,null,null,null,null,null,null,null,null,null,null,null,{"$f":"IF(AGENDA!C693<>\"\",C693,\"\")","v":""}]
[null,null,null,null,null,null,null,null,null,null,null,null,null,null,null,{"$f":"IF(AGENDA!C694<>\"\",C694,\"\")","v":""}]
[null,null,null,null,null,null,null,null,null,null,null,null,null,null,null,{"$f":"IF(AGENDA!C695<>\"\",C695,\"\")","v":""}]
[null,null,null,null,null,null,null,null,null,null,null,null,null,null,null,{"$f":"IF(AGENDA!C696<>\"\",C696,\"\")","v":""}]
[null,null,null,null,null,null,null,null,null,null,null,null,null,null,null,{"$f":"IF(AGENDA!C697<>\"\",C697,\"\")","v":""}]
[null,null,null,null,null,null,null,null,null,null,null,null,null,null,null,{"$f":"IF(AGENDA!C698<>\"\",C698,\"\")","v":""}]
[null,null,null,null,null,null,null,null,null,null,null,null,null,null,null,{"$f":"IF(AGENDA!C699<>\"\",C699,\"\")","v":""}]
[null,null,null,null,null,null,null,null,null,null,null,null,null,null,null,{"$f":"IF(AGENDA!C700<>\"\",C700,\"\")","v":""}]
[null,null,null,null,null,null,null,null,null,null,null,null,null,null,null,{"$f":"IF(AGENDA!C701<>\"\",C701,\"\")","v":""}]
[null,null,null,null,null,null,null,null,null,null,null,null,null,null,null,{"$f":"IF(AGENDA!C702<>\"\",C702,\"\")","v":""}]
[null,null,null,null,null,null,null,null,null,null,null,null,null,null,null,{"$f":"IF(AGENDA!C703<>\"\",C703,\"\")","v":""}]
[null,null,null,null,null,null,null,null,null,null,null,null,null,null,null,{"$f":"IF(AGENDA!C704<>\"\",C704,\"\")","v":""}]
[null,null,null,null,null,null,null,null,null,null,null,null,null,null,null,{"$f":"IF(AGENDA!C705<>\"\",C705,\"\")","v":""}]
[null,null,null,null,null,null,null,null,null,null,null,null,null,null,null,{"$f":"IF(AGENDA!C706<>\"\",C706,\"\")","v":""}]
[null,null,null,null,null,null,null,null,null,null,null,null,null,null,null,{"$f":"IF(AGENDA!C707<>\"\",C707,\"\")","v":""}]
[null,null,null,null,null,null,null,null,null,null,null,null,null,null,null,{"$f":"IF(AGENDA!C708<>\"\",C708,\"\")","v":""}]
[null,null,null,null,null,null,null,null,null,null,null,null,null,null,null,{"$f":"IF(AGENDA!C709<>\"\",C709,\"\")","v":""}]
[null,null,null,null,null,null,null,null,null,null,null,null,null,null,null,{"$f":"IF(AGENDA!C710<>\"\",C710,\"\")","v":""}]
[null,null,null,null,null,null,null,null,null,null,null,null,null,null,null,{"$f":"IF(AGENDA!C711<>\"\",C711,\"\")","v":""}]
[null,null,null,null,null,null,null,null,null,null,null,null,null,null,null,{"$f":"IF(AGENDA!C712<>\"\",C712,\"\")","v":""}]
[null,null,null,null,null,null,null,null,null,null,null,null,null,null,null,{"$f":"IF(AGENDA!C713<>\"\",C713,\"\")","v":""}]
[null,null,null,null,null,null,null,null,null,null,null,null,null,null,null,{"$f":"IF(AGENDA!C714<>\"\",C714,\"\")","v":""}]
[null,null,null,null,null,null,null,null,null,null,null,null,null,null,null,{"$f":"IF(AGENDA!C715<>\"\",C715,\"\")","v":""}]
[null,null,null,null,null,null,null,null,null,null,null,null,null,null,null,{"$f":"IF(AGENDA!C716<>\"\",C716,\"\")","v":""}]
[null,null,null,null,null,null,null,null,null,null,null,null,null,null,null,{"$f":"IF(AGENDA!C717<>\"\",C717,\"\")","v":""}]
[null,null,null,null,null,null,null,null,null,null,null,null,null,null,null,{"$f":"IF(AGENDA!C718<>\"\",C718,\"\")","v":""}]
[null,null,null,null,null,null,null,null,null,null,null,null,null,null,null,{"$f":"IF(AGENDA!C719<>\"\",C719,\"\")","v":""}]
[null,null,null,null,null,null,null,null,null,null,null,null,null,null,null,{"$f":"IF(AGENDA!C720<>\"\",C720,\"\")","v":""}]
[null,null,null,null,null,null,null,null,null,null,null,null,null,null,null,{"$f":"IF(AGENDA!C721<>\"\",C721,\"\")","v":""}]
[null,null,null,null,null,null,null,null,null,null,null,null,null,null,null,{"$f":"IF(AGENDA!C722<>\"\",C722,\"\")","v":""}]
[null,null,null,null,null,null,null,null,null,null,null,null,null,null,null,{"$f":"IF(AGENDA!C723<>\"\",C723,\"\")","v":""}]
[null,null,null,null,null,null,null,null,null,null,null,null,null,null,null,{"$f":"IF(AGENDA!C724<>\"\",C724,\"\")","v":""}]
[null,null,null,null,null,null,null,null,null,null,null,null,null,null,null,{"$f":"IF(AGENDA!C725<>\"\",C725,\"\")","v":""}]
[null,null,null,null,null,null,null,null,null,null,null,null,null,null,null,{"$f":"IF(AGENDA!C726<>\"\",C726,\"\")","v":""}]
[null,null,null,null,null,null,null,null,null,null,null,null,null,null,null,{"$f":"IF(AGENDA!C727<>\"\",C727,\"\")","v":""}]
[null,null,null,null,null,null,null,null,null,null,null,null,null,null,null,{"$f":"IF(AGENDA!C728<>\"\",C728,\"\")","v":""}]
[null,null,null,null,null,null,null,null,null,null,null,null,null,null,null,{"$f":"IF(AGENDA!C729<>\"\",C729,\"\")","v":""}]
[null,null,null,null,null,null,null,null,null,null,null,null,null,null,null,{"$f":"IF(AGENDA!C730<>\"\",C730,\"\")","v":""}]
[null,null,null,null,null,null,null,null,null,null,null,null,null,null,null,{"$f":"IF(AGENDA!C731<>\"\",C731,\"\")","v":""}]
[null,null,null,null,null,null,null,null,null,null,null,null,null,null,null,{"$f":"IF(AGENDA!C732<>\"\",C732,\"\")","v":""}]
[null,null,null,null,null,null,null,null,null,null,null,null,null,null,null,{"$f":"IF(AGENDA!C733<>\"\",C733,\"\")","v":""}]
[null,null,null,null,null,null,null,null,null,null,null,null,null,null,null,{"$f":"IF(AGENDA!C734<>\"\",C734,\"\")","v":""}]
[null,null,null,null,null,null,null,null,null,null,null,null,null,null,null,{"$f":"IF(AGENDA!C735<>\"\",C735,\"\")","v":""}]
[null,null,null,null,null,null,null,null,null,null,null,null,null,null,null,{"$f":"IF(AGENDA!C736<>\"\",C736,\"\")","v":""}]
[null,null,null,null,null,null,null,null,null,null,null,null,null,null,null,{"$f":"IF(AGENDA!C737<>\"\",C737,\"\")","v":""}]
[null,null,null,null,null,null,null,null,null,null,null,null,null,null,null,{"$f":"IF(AGENDA!C738<>\"\",C738,\"\")","v":""}]
[null,null,null,null,null,null,null,null,null,null,null,null,null,null,null,{"$f":"IF(AGENDA!C739<>\"\",C739,\"\")","v":""}]
[null,null,null,null,null,null,null,null,null,null,null,null,null,null,null,{"$f":"IF(AGENDA!C740<>\"\",C740,\"\")","v":""}]
[null,null,null,null,null,null,null,null,null,null,null,null,null,null,null,{"$f":"IF(AGENDA!C741<>\"\",C741,\"\")","v":""}]
[null,null,null,null,null,null,null,null,null,null,null,null,null,null,null,{"$f":"IF(AGENDA!C742<>\"\",C742,\"\")","v":""}]
[null,null,null,null,null,null,null,null,null,null,null,null,null,null,null,{"$f":"IF(AGENDA!C743<>\"\",C743,\"\")","v":""}]
[null,null,null,null,null,null,null,null,null,null,null,null,null,null,null,{"$f":"IF(AGENDA!C744<>\"\",C744,\"\")","v":""}]
[null,null,null,null,null,null,null,null,null,null,null,null,null,null,null,{"$f":"IF(AGENDA!C745<>\"\",C745,\"\")","v":""}]
[null,null,null,null,null,null,null,null,null,null,null,null,null,null,null,{"$f":"IF(AGENDA!C746<>\"\",C746,\"\")","v":""}]
[null,null,null,null,null,null,null,null,null,null,null,null,null,null,null,{"$f":"IF(AGENDA!C747<>\"\",C747,\"\")","v":""}]
[null,null,null,null,null,null,null,null,null,null,null,null,null,null,null,{"$f":"IF(AGENDA!C748<>\"\",C748,\"\")","v":""}]
[null,null,null,null,null,null,null,null,null,null,null,null,null,null,null,{"$f":"IF(AGENDA!C749<>\"\",C749,\"\")","v":""}]
[null,null,null,null,null,null,null,null,null,null,null,null,null,null,null,{"$f":"IF(AGENDA!C750<>\"\",C750,\"\")","v":""}]
[null,null,null,null,null,null,null,null,null,null,null,null,null,null,null,{"$f":"IF(AGENDA!C751<>\"\",C751,\"\")","v":""}]
[null,null,null,null,null,null,null,null,null,null,null,null,null,null,null,{"$f":"IF(AGENDA!C752<>\"\",C752,\"\")","v":""}]
[null,null,null,null,null,null,null,null,null,null,null,null,null,null,null,{"$f":"IF(AGENDA!C753<>\"\",C753,\"\")","v":""}]
[null,null,null,null,null,null,null,null,null,null,null,null,null,null,null,{"$f":"IF(AGENDA!C754<>\"\",C754,\"\")","v":""}]

{"sheet":"AUXILIAR","index":4,"n_rows":39,"n_cols":32,"rows_kept":39,"cut":false,"hidden":true,"merged":[[13,9,13,15],[22,9,22,15],[31,9,31,15]]}
["Today's Date",null,"Month Names"]
[{"$f":"TODAY()","v":"2012-10-28"},null,"Enero"]
[{"$f":"MONTH(TODAY())+B3","v":11},1,"Febrero",null,null,"monthName",{"$f":"INDEX(monthNames,MONTH(G4))","v":"Noviembre"}]
[{"$f":"INDEX(monthNames,MONTH(G4))","v":"Noviembre"},null,"Marzo",null,null,"startDate",{"$f":"DATE(year,month,1)","v":"2012-11-01"}]
[{"$f":"YEAR(TODAY())","v":2012},null,"Abril",null,null,"startDayOfWeek",{"$f":"WEEKDAY(startDate)","v":5}]
[null,null,"Mayo",null,null,"prevMonth",{"$f":"DATE(YEAR(startDate-1),MONTH(startDate-1),1)","v":"2012-10-01"}]
["Fecha Seleccionada",null,"Junio",null,null,"prevMonthName",{"$f":"INDEX(monthNames,MONTH(G6))","v":"Octubre"}]
[null,null,"Julio",null,null,"nextMonth",{"$f":"DATE(YEAR(startDate+32),MONTH(startDate+32),1)","v":"2012-12-01"}]
[null,null,"Agosto",null,null,"nextMonthName",{"$f":"INDEX(monthNames,MONTH(G8))","v":"Diciembre"}]
[null,null,"Septiembre",null,null,"MonFirst",true]
[null,null,"Octubre"]
[null,null,"Noviembre",null,null,null,null,null,null,null,null,null,null,null,null,null,null,"SUNDAY First",null,null,null,null,null,null,null,"MONDAY First"]
[null,null,"Diciembre"]
[null,null,null,null,null,null,null,null,null,{"$f":"prevMonthName&\" \"&YEAR(prevMonth)","v":"Octubre 2012"},null,null,null,null,null,null,null,{"$f":"prevMonthName&\" \"&YEAR(prevMonth)","v":"Octubre 2012"},null,null,null,null,null,null,null,{"$f":"prevMonthName&\" \"&YEAR(prevMonth)","v":"Octubre 2012"}]
["WeekNo",{"$f":"IF(MonFirst,\"Monday\",\"Sunday\")","v":"Monday"},{"$f":"IF(MonFirst,\"Tuesday\",\"Monday\")","v":"Tuesday"},{"$f":"IF(MonFirst,\"Wednesday\",\"Tuesday\")","v":"Wednesday"},{"$f":"IF(MonFirst,\"Thursday\",\"Wednesday\")","v":"Thursday"},{"$f":"IF(MonFirst,\"Friday\",\"Thursday\")","v":"Friday"},{"$f":"IF(MonFirst,\"Saturday\",\"Friday\")","v":"Saturday"},{"$f":"IF(MonFirst,\"Sunday\",\"Saturday\")","v":"Sunday"},null,{"$f":"IF(MonFirst,Z15,#REF!)","v":"Lunes"},{"$f":"IF(MonFirst,AA15,S15)","v":"Martes"},"Miércoles","Jueves","Viernes","Sábado","Domingo",null,"Domingo","Lunes","Martes","Miércoles","Jueves","Viernes","Sábado",null,"Lunes","Martes","Miércoles","Jueves","Viernes","Sábado","Domingo"]
[null,1,2,3,4,5,6,7,null,{"$f":"IF(MonFirst,Z16,R16)","v":"2012-10-01"},"2012-10-02","2012-10-03","2012-10-04","2012-10-05","2012-10-06","2012-10-07",null,{"$f":"IF(MONTH(prevMonth)<>MONTH(prevMonth-WEEKDAY(prevMonth)+(WeekNo-1)*7+weekday),\"\",prevMonth-WEEKDAY(prevMonth)+(WeekNo-1)*7+weekday)","v":""},"2012-10-01","2012-10-02","2012-10-03","2012-10-04","2012-10-05","2012-10-06",null,{"$f":"IF(MONTH(prevMonth)<>MONTH(prevMonth-WEEKDAY(prevMonth,2)+(WeekNo-1)*7+weekday),\"\",prevMonth-WEEKDAY(prevMonth,2)+(WeekNo-1)*7+weekday)","v":"2012-10-01"},"2012-10-02","2012-10-03","2012-10-04","2012-10-05","2012-10-06","2012-10-07"]
[1,{"$f":"J25","v":""},"","","2012-11-01","2012-11-02","2012-11-03","2012-11-04",null,{"$f":"IF(MonFirst,Z17,R17)","v":"2012-10-08"},"2012-10-09","2012-10-10","2012-10-11","2012-10-12","2012-10-13","2012-10-14",null,"2012-10-07","2012-10-08","2012-10-09","2012-10-10","2012-10-11","2012-10-12","2012-10-13",null,"2012-10-08","2012-10-09","2012-10-10","2012-10-11","2012-10-12","2012-10-13","2012-10-14"]
[2,"2012-11-05","2012-11-06","2012-11-07","2012-11-08","2012-11-09","2012-11-10","2012-11-11",null,"2012-10-15","2012-10-16","2012-10-17","2012-10-18","2012-10-19","2012-10-20","2012-10-21",null,"2012-10-14","2012-10-15","2012-10-16","2012-10-17","2012-10-18","2012-10-19","2012-10-20",null,"2012-10-15","2012-10-16","2012-10-17","2012-10-18","2012-10-19","2012-10-20","2012-10-21"]
[3,"2012-11-12","2012-11-13","2012-11-14","2012-11-15","2012-11-16","2012-11-17","2012-11-18",null,"2012-10-22","2012-10-23","2012-10-24","2012-10-25","2012-10-26","2012-10-27","2012-10-28",null,"2012-10-21","2012-10-22","2012-10-23","2012-10-24","2012-10-25","2012-10-26","2012-10-27",null,"2012-10-22","2012-10-23","2012-10-24","2012-10-25","2012-10-26","2012-10-27","2012-10-28"]
[4,"2012-11-19","2012-11-20","2012-11-21","2012-11-22","2012-11-23","2012-11-24","2012-11-25",null,"2012-10-29","2012-10-30","2012-10-31","","","","",null,"2012-10-28","2012-10-29","2012-10-30","2012-10-31","","","",null,"2012-10-29","2012-10-30","2012-10-31","","","",""]
[5,"2012-11-26","2012-11-27","2012-11-28","2012-11-29","2012-11-30","","",null,"","","","","","","",null,"","","","","","","",null,"","","","","","",""]
[6,"","","","","","",""]
[null,null,null,null,null,null,null,null,null,{"$f":"monthName&\" \"&YEAR(startDate)","v":"Noviembre 2012"},null,null,null,null,null,null,null,{"$f":"monthName&\" \"&year","v":"Noviembre 2012"},null,null,null,null,null,null,null,{"$f":"monthName&\" \"&year","v":"Noviembre 2012"}]
["WeekNo","Sun","Mon","Tue","Wed","Thu","Fri","Sat",null,{"$f":"IF(MonFirst,Z24,R24)","v":"Lunes"},"Martes","Miércoles","Jueves","Viernes","Sábado","Domingo",null,"Domingo","Lunes","Martes","Miércoles","Jueves","Viernes","Sábado",null,"Lunes","Martes","Miércoles","Jueves","Viernes","Sábado","Domingo"]
[null,1,2,3,4,5,6,7,null,"","","","2012-11-01","2012-11-02","2012-11-03","2012-11-04",null,{"$f":"IF(MONTH(startDate)<>MONTH(startDate-startDayOfWeek+(WeekNo-1)*7+weekday),\"\",startDate-startDayOfWeek+(WeekNo-1)*7+weekday)","v":""},"","","","2012-11-01","2012-11-02","2012-11-03",null,{"$f":"IF(MONTH(startDate)<>MONTH(startDate-WEEKDAY(startDate,2)+(WeekNo-1)*7+weekday),\"\",startDate-WEEKDAY(startDate,2)+(WeekNo-1)*7+weekday)","v":""},"","","2012-11-01","2012-11-02","2012-11-03","2012-11-04"]
[1,{"$f":"J25","v":""},"","","2012-11-01","2012-11-02","2012-11-03","2012-11-04",null,{"$f":"IF(MonFirst,Z26,R26)","v":"2012-11-05"},"2012-11-06","2012-11-07","2012-11-08","2012-11-09","2012-11-10","2012-11-11",null,"2012-11-04","2012-11-05","2012-11-06","2012-11-07","2012-11-08","2012-11-09","2012-11-10",null,"2012-11-05","2012-11-06","2012-11-07","2012-11-08","2012-11-09","2012-11-10","2012-11-11"]
[2,"2012-11-05","2012-11-06","2012-11-07","2012-11-08","2012-11-09","2012-11-10","2012-11-11",null,"2012-11-12","2012-11-13","2012-11-14","2012-11-15","2012-11-16","2012-11-17","2012-11-18",null,"2012-11-11","2012-11-12","2012-11-13","2012-11-14","2012-11-15","2012-11-16","2012-11-17",null,"2012-11-12","2012-11-13","2012-11-14","2012-11-15","2012-11-16","2012-11-17","2012-11-18"]
[3,"2012-11-12","2012-11-13","2012-11-14","2012-11-15","2012-11-16","2012-11-17","2012-11-18",null,"2012-11-19","2012-11-20","2012-11-21","2012-11-22","2012-11-23","2012-11-24","2012-11-25",null,"2012-11-18","2012-11-19","2012-11-20","2012-11-21","2012-11-22","2012-11-23","2012-11-24",null,"2012-11-19","2012-11-20","2012-11-21","2012-11-22","2012-11-23","2012-11-24","2012-11-25"]
[4,"2012-11-19","2012-11-20","2012-11-21","2012-11-22","2012-11-23","2012-11-24","2012-11-25",null,"2012-11-26","2012-11-27","2012-11-28","2012-11-29","2012-11-30","","",null,"2012-11-25","2012-11-26","2012-11-27","2012-11-28","2012-11-29","2012-11-30","",null,"2012-11-26","2012-11-27","2012-11-28","2012-11-29","2012-11-30","",""]
[5,"2012-11-26","2012-11-27","2012-11-28","2012-11-29","2012-11-30","","",null,"","","","","","","",null,"","","","","","","",null,"","","","","","",""]
[6,"","","","","","",""]
[null,null,null,null,null,null,null,null,null,{"$f":"nextMonthName&\" \"&YEAR(nextMonth)","v":"Diciembre 2012"},null,null,null,null,null,null,null,{"$f":"nextMonthName&\" \"&YEAR(nextMonth)","v":"Diciembre 2012"},null,null,null,null,null,null,null,{"$f":"nextMonthName&\" \"&YEAR(nextMonth)","v":"Diciembre 2012"}]
[null,null,null,null,null,null,null,null,null,{"$f":"IF(MonFirst,Z33,R33)","v":"Lunes"},"Martes","Miércoles","Jueves","Viernes","Sábado","Domingo",null,"Domingo","Lunes","Martes","Miércoles","Jueves","Viernes","Sábado",null,"Lunes","Martes","Miércoles","Jueves","Viernes","Sábado","Domingo"]
[null,null,null,null,null,null,null,null,null,"","","","","","2012-12-01","2012-12-02",null,{"$f":"IF(MONTH(nextMonth)<>MONTH(nextMonth-WEEKDAY(nextMonth)+(WeekNo-1)*7+weekday),\"\",nextMonth-WEEKDAY(nextMonth)+(WeekNo-1)*7+weekday)","v":""},"","","","","","2012-12-01",null,{"$f":"IF(MONTH(nextMonth)<>MONTH(nextMonth-WEEKDAY(nextMonth,2)+(WeekNo-1)*7+weekday),\"\",nextMonth-WEEKDAY(nextMonth,2)+(WeekNo-1)*7+weekday)","v":""},"","","","","2012-12-01","2012-12-02"]
[null,null,null,null,null,null,null,null,null,{"$f":"IF(MonFirst,Z35,R35)","v":"2012-12-03"},"2012-12-04","2012-12-05","2012-12-06","2012-12-07","2012-12-08","2012-12-09",null,"2012-12-02","2012-12-03","2012-12-04","2012-12-05","2012-12-06","2012-12-07","2012-12-08",null,"2012-12-03","2012-12-04","2012-12-05","2012-12-06","2012-12-07","2012-12-08","2012-12-09"]
[null,null,null,null,null,null,null,null,null,"2012-12-10","2012-12-11","2012-12-12","2012-12-13","2012-12-14","2012-12-15","2012-12-16",null,"2012-12-09","2012-12-10","2012-12-11","2012-12-12","2012-12-13","2012-12-14","2012-12-15",null,"2012-12-10","2012-12-11","2012-12-12","2012-12-13","2012-12-14","2012-12-15","2012-12-16"]
[null,null,null,null,null,null,null,null,null,"2012-12-17","2012-12-18","2012-12-19","2012-12-20","2012-12-21","2012-12-22","2012-12-23",null,"2012-12-16","2012-12-17","2012-12-18","2012-12-19","2012-12-20","2012-12-21","2012-12-22",null,"2012-12-17","2012-12-18","2012-12-19","2012-12-20","2012-12-21","2012-12-22","2012-12-23"]
[null,null,null,null,null,null,null,null,null,"2012-12-24","2012-12-25","2012-12-26","2012-12-27","2012-12-28","2012-12-29","2012-12-30",null,"2012-12-23","2012-12-24","2012-12-25","2012-12-26","2012-12-27","2012-12-28","2012-12-29",null,"2012-12-24","2012-12-25","2012-12-26","2012-12-27","2012-12-28","2012-12-29","2012-12-30"]
[null,null,null,null,null,null,null,null,null,"2012-12-31","","","","","","",null,"2012-12-30","2012-12-31","","","","","",null,"2012-12-31","","","","","",""]